Workbook

Sheet กำหนดวันยื่น
B1: 2566-10-01 | C1: กรอกวันเวลาที่จะยื่นให้กับ ผอ.สถานศึกษา (โดยกรอกในรูปแบบ "16/9/2561")
A2: ใช้ประกอบ | E2: 2560-07-04 | F2: 2560-07-05
A3: กรอกในแบบ | B3: ปีที่ 1 | C3: ปีที่ 2 | D3: ปีที่ 3 | E3: ปีที่ 4 | F3: ปีที่ 5
B4: ตั้งแต่วันที่ | C4: ตั้งแต่วันที่ | D4: ตั้งแต่วันที่ | E4: ตั้งแต่วันที่ | F4: ตั้งแต่วันที่
A5: ข้อ 4.2 (ใช้เอกสารรับรองจากผู้อำนวยการสถานศึกษา) | B5: =IF(B7="","",IF(B7=$E$2,DATE(YEAR(C9)-1,MONTH(C9),DAY(C9)),DATE(YEAR(B7)-1,MONTH(B7),DAY(B7)+1))) ->  | C5: =IF(C7="","",IF(C7=$E$2,DATE(YEAR(D9)-1,MONTH(D9),DAY(D9)),DATE(YEAR(C7)-1,MONTH(C7),DAY(C7)+1))) ->  | D5: =IF(D7="","",IF(D7=$E$2,DATE(YEAR(E9)-1,MONTH(E9),DAY(E9)),DATE(YEAR(D7)-1,MONTH(D7),DAY(D7)+1))) ->  | E5: =IF(E7="","",IF(E7=$E$2,DATE(YEAR(F9)-1,MONTH(F9),DAY(F9)),DATE(YEAR(E7)-1,MONTH(E7),DAY(E7)+1))) ->  | F5: =IF(F7="","",IF(F7=$E$2,DATE(YEAR(B1)-1,MONTH(B1),DAY(B1)+1),DATE(YEAR(F7)-1,MONTH(F7),DAY(F7)+1))) -> 
A6: 1) ก่อน 5 กรกฎาคม 2560 | B6: ถึงวันที่ | C6: ถึงวันที่ | D6: ถึงวันที่ | E6: ถึงวันที่ | F6: ถึงวันที่
B7: =IF(C5<>"",DATE(YEAR(C5),MONTH(C5),DAY(C5)-1),IF(B9=$F$2,IF(DATE(YEAR(B11)-1,MONTH(B11),DAY(B11))=$E$2,"",DATE(YEAR($F$2),MONTH($F$2),DAY($F$2)-1)),IF(C9=$F$2,DATE(YEAR(C9),MONTH(C9),DAY(C9)-1),""))) ->  | C7: =IF(D5<>"",DATE(YEAR(D5),MONTH(D5),DAY(D5)-1),IF(C9=$F$2,IF(DATE(YEAR(C11)-1,MONTH(C11),DAY(C11))=$E$2,"",DATE(YEAR($F$2),MONTH($F$2),DAY($F$2)-1)),IF(D9=$F$2,DATE(YEAR(D9),MONTH(D9),DAY(D9)-1),""))) ->  | D7: =IF(E5<>"",DATE(YEAR(E5),MONTH(E5),DAY(E5)-1),IF(D9=$F$2,IF(DATE(YEAR(D11)-1,MONTH(D11),DAY(D11))=$E$2,"",DATE(YEAR($F$2),MONTH($F$2),DAY($F$2)-1)),IF(E9=$F$2,DATE(YEAR(E9),MONTH(E9),DAY(E9)-1),""))) ->  | E7: =IF(F5<>"",DATE(YEAR(F5),MONTH(F5),DAY(F5)-1),IF(E9=$F$2,IF(DATE(YEAR(E11)-1,MONTH(E11),DAY(E11))=$E$2,"",DATE(YEAR($F$2),MONTH($F$2),DAY($F$2)-1)),IF(F9=$F$2,DATE(YEAR(F9),MONTH(F9),DAY(F9)-1),""))) ->  | F7: =IF(ISBLANK(B1),"",IF(B1>=$F$2,IF(DATE(YEAR(F11)-1,MONTH(F11),DAY(F11))=$E$2,"",IF(F9=$F$2,DATE(YEAR($F$2),MONTH($F$2),DAY($F$2)-1),"")),B1)) -> 
A9: ข้อ 4.2 (ใช้จำนวนชั่วโมงใน Logbook Teacher) | B9: =IF(B11="","",IF(DATE(YEAR(C9)-1,MONTH(C9),DAY(C9))<$F$2,$F$2,DATE(YEAR(C9)-1,MONTH(C9),DAY(C9)))) -> 2561-10-02 | C9: =IF(C11="","",IF(DATE(YEAR(D9)-1,MONTH(D9),DAY(D9))<$F$2,$F$2,DATE(YEAR(D9)-1,MONTH(D9),DAY(D9)))) -> 2562-10-02 | D9: =IF(D11="","",IF(DATE(YEAR(E9)-1,MONTH(E9),DAY(E9))<$F$2,$F$2,DATE(YEAR(E9)-1,MONTH(E9),DAY(E9)))) -> 2563-10-02 | E9: =IF(E11="","",IF(DATE(YEAR(F9)-1,MONTH(F9),DAY(F9))<$F$2,$F$2,DATE(YEAR(F9)-1,MONTH(F9),DAY(F9)))) -> 2564-10-02 | F9: =IF(F11="","",IF(DATE(YEAR(F11)-1,MONTH(F11),DAY(F11)+1)<$F$2,$F$2,DATE(YEAR(F11)-1,MONTH(F11),DAY(F11)+1))) -> 2565-10-02
A10: 2) หลัง 5 กรกฎาคม 2560 | B10: ถึงวันที่ | C10: ถึงวันที่ | D10: ถึงวันที่ | E10: ถึงวันที่ | F10: ถึงวันที่
B11: =IF(OR(C9=$F$2,C9=""),"",IF(DATE(YEAR(C11)-1,MONTH(C11),DAY(C11))<$F$2,$F$2,DATE(YEAR(C11)-1,MONTH(C11),DAY(C11)))) -> 2562-10-01 | C11: =IF(OR(D9=$F$2,D9=""),"",IF(DATE(YEAR(D11)-1,MONTH(D11),DAY(D11))<$F$2,$F$2,DATE(YEAR(D11)-1,MONTH(D11),DAY(D11)))) -> 2563-10-01 | D11: =IF(OR(E9=$F$2,E9=""),"",IF(DATE(YEAR(E11)-1,MONTH(E11),DAY(E11))<$F$2,$F$2,DATE(YEAR(E11)-1,MONTH(E11),DAY(E11)))) -> 2564-10-01 | E11: =IF(OR(F9=$F$2,F9=""),"",IF(DATE(YEAR(F11)-1,MONTH(F11),DAY(F11))<$F$2,$F$2,DATE(YEAR(F11)-1,MONTH(F11),DAY(F11)))) -> 2565-10-01 | F11: =IF(ISBLANK(B1),"",IF(B1<$F$2,"",B1)) -> 2566-10-01

Sheet กรอกข้อมูลก่อน 5 ก.ค.2560
B2: หน่วยนับเวลาต่อคาบ (นาที) | D2: 50 | E2: ชั่วโมงสอนขั้นต่ำตามเกณฑ์ที่ ก.ค.ศ. กำหนด (ชั่วโมง/สัปดาห์) | H2: 12
A3: ลำดับที่ | B3: ปีการศึกษา/ปีงบประมาณ | C3: ภาคเรียนที่ | D3: สัปดาห์ที่ | E3: เริ่มวันที่ | F3: ถึงวันที่ | G3: คาบตามตารางสอน | H3: คาบที่ไม่ได้สอน | I3: ไม่ได้สอนเพราะ | J3: จำนวนเวลาที่สอนจริง | K3: ชั่วโมงปฏิบัติงานตามหน้าที่ความรับผิดชอบด้านการเรียนการสอนและการพัฒนาผู้เรียน
A4: ปีที่ 1 รวม | G4: =SUM(G5:G57) -> 51 | H4: =SUM(H5:H57) -> 0 | I4: =SUM(L5:L57) -> 0 | J4: =SUM(J5:J57) -> 1.770833333 | K4: =(SUM(K5:K57)*60)/1440 -> 0.1111111111
A5: 1 | B5: 2556 | C5: 2 | D5: 1 | E5: =IF(กำหนดวันยื่น!B5="","กรอกข้อมูลในLogbook",กำหนดวันยื่น!B5) -> กรอกข้อมูลในLogbook | F5: 2556-12-16 | G5: 17 | I5: 2.สอนไม่ครบ 5 วัน | J5: =((G5-H5)*$D$2)/1440 -> 0.5902777778 | K5: =50/60 -> 0.8333333333 | L5: =IF(J5>=$I$2,0,IF(I5="4.ไปอบรม งานอื่นที่มอบหมาย",1,0)) -> 0 | M5: =(K5*60)/1440 -> 0.03472222222
A6: 2 | B6: 2556 | C6: 2 | D6: 2 | E6: 2556-12-17 | F6: 2556-12-23 | G6: 17 | J6: =((G6-H6)*$D$2)/1440 -> 0.5902777778 | K6: =50/60 -> 0.8333333333 | L6: =IF(J6>=$I$2,0,IF(I6="4.ไปอบรม งานอื่นที่มอบหมาย",1,0)) -> 0 | M6: =(K6*60)/1440 -> 0.03472222222
A7: 3 | B7: 2556 | C7: 2 | D7: 3 | E7: 2556-12-24 | F7: 2556-12-30 | G7: 17 | J7: 0.5902777778 | K7: 1 | L7: 0 | M7: 0.04166666667
A8: 4 | J8: 0 | L8: 0 | M8: 0
A9: 5 | J9: 0 | L9: 0 | M9: 0
A10: 6 | J10: 0 | L10: 0 | M10: 0
A11: 7 | J11: 0 | L11: 0 | M11: 0
A12: 8 | J12: 0 | L12: 0 | M12: 0
A13: 9 | J13: 0 | L13: 0 | M13: 0
A14: 10 | J14: 0 | L14: 0 | M14: 0
A15: 11 | J15: 0 | L15: 0 | M15: 0
A16: 12 | J16: 0 | L16: 0 | M16: 0
A17: 13 | J17: 0 | L17: 0 | M17: 0
A18: 14 | J18: 0 | L18: 0 | M18: 0
A19: 15 | J19: 0 | L19: 0 | M19: 0
A20: 16 | J20: 0 | L20: 0 | M20: 0
A21: 17 | J21: 0 | L21: 0 | M21: 0
A22: 18 | J22: 0 | L22: 0 | M22: 0
A23: 19 | J23: 0 | L23: 0 | M23: 0
A24: 20 | J24: 0 | L24: 0 | M24: 0
A25: 21 | J25: 0 | L25: 0 | M25: 0
A26: 22 | J26: 0 | L26: 0 | M26: 0
A27: 23 | J27: 0 | L27: 0 | M27: 0
A28: 24 | J28: 0 | L28: 0 | M28: 0
A29: 25 | J29: 0 | L29: 0 | M29: 0
A30: 26 | J30: 0 | L30: 0 | M30: 0
A31: 27 | J31: 0 | L31: 0 | M31: 0
A32: 28 | J32: 0 | L32: 0 | M32: 0
A33: 29 | J33: 0 | L33: 0 | M33: 0
A34: 30 | J34: 0 | L34: 0 | M34: 0
A35: 31 | J35: 0 | L35: 0 | M35: 0
A36: 32 | J36: 0 | L36: 0 | M36: 0
A37: 33 | J37: 0 | L37: 0 | M37: 0
A38: 34 | J38: 0 | L38: 0 | M38: 0
A39: 35 | J39: 0 | L39: 0 | M39: 0
A40: 36 | J40: 0 | L40: 0 | M40: 0
A41: 37 | J41: 0 | L41: 0 | M41: 0
A42: 38 | J42: 0 | L42: 0 | M42: 0
A43: 39 | J43: 0 | L43: 0 | M43: 0
A44: 40 | J44: 0 | L44: 0 | M44: 0
A45: 41 | J45: 0 | L45: 0 | M45: 0
A46: 42 | J46: 0 | L46: 0 | M46: 0
A47: 43 | J47: 0 | L47: 0 | M47: 0
A48: 44 | J48: 0 | L48: 0 | M48: 0
A49: 45 | J49: 0 | L49: 0 | M49: 0
A50: 46 | J50: 0 | L50: 0 | M50: 0
A51: 47 | J51: 0 | L51: 0 | M51: 0
A52: 48 | J52: 0 | L52: 0 | M52: 0
A53: 49 | J53: 0 | L53: 0 | M53: 0
A54: 50 | J54: 0 | L54: 0 | M54: 0
A55: 51 | J55: 0 | L55: 0 | M55: 0
A56: 52 | J56: 0 | L56: 0 | M56: 0
A57: 53 | J57: 0 | L57: 0 | M57: 0
A58: ปีที่ 2 รวม | G58: =SUM(G59:G111) -> 0 | H58: =SUM(H59:H111) -> 0 | I58: =SUM(L59:L111) -> 0 | J58: =SUM(J59:J111) -> 0 | K58: =(SUM(K59:K111)*60)/1440 -> 0
A59: 1 | E59: =IF(กำหนดวันยื่น!C5="","กรอกข้อมูลในLogbook",กำหนดวันยื่น!C5) -> กรอกข้อมูลในLogbook | J59: =((G59-H59)*$D$2)/1440 -> 0 | L59: 0 | M59: 0
A60: 2 | D60: . | J60: =((G60-H60)*$D$2)/1440 -> 0 | L60: 0 | M60: 0
A61: 3 | J61: 0 | L61: 0 | M61: 0
A62: 4 | J62: 0 | L62: 0 | M62: 0
A63: 5 | J63: 0 | L63: 0 | M63: 0
A64: 6 | J64: 0 | L64: 0 | M64: 0
A65: 7 | J65: 0 | L65: 0 | M65: 0
A66: 8 | J66: 0 | L66: 0 | M66: 0
A67: 9 | J67: 0 | L67: 0 | M67: 0
A68: 10 | J68: 0 | L68: 0 | M68: 0
A69: 11 | J69: 0 | L69: 0 | M69: 0
A70: 12 | J70: 0 | L70: =IF(J70>=$I$2,0,IF(I70="4.ไปอบรม งานอื่นที่มอบหมาย",1,0)) -> 0 | M70: =(K70*60)/1440 -> 0
A71: 13 | J71: 0 | L71: 0 | M71: 0
A72: 14 | J72: 0 | L72: 0 | M72: 0
A73: 15 | J73: 0 | L73: 0 | M73: 0
A74: 16 | J74: 0 | L74: 0 | M74: 0
A75: 17 | J75: 0 | L75: 0 | M75: 0
A76: 18 | J76: 0 | L76: 0 | M76: 0
A77: 19 | J77: 0 | L77: 0 | M77: 0
A78: 20 | J78: 0 | L78: 0 | M78: 0
A79: 21 | J79: 0 | L79: 0 | M79: 0
A80: 22 | J80: 0 | L80: 0 | M80: 0
A81: 23 | J81: 0 | L81: 0 | M81: 0
A82: 24 | J82: 0 | L82: 0 | M82: 0
A83: 25 | J83: 0 | L83: 0 | M83: 0
A84: 26 | J84: 0 | L84: 0 | M84: 0
A85: 27 | J85: 0 | L85: 0 | M85: 0
A86: 28 | J86: 0 | L86: 0 | M86: 0
A87: 29 | J87: 0 | L87: 0 | M87: 0
A88: 30 | J88: 0 | L88: 0 | M88: 0
A89: 31 | J89: 0 | L89: 0 | M89: 0
A90: 32 | J90: 0 | L90: 0 | M90: 0
A91: 33 | J91: 0 | L91: 0 | M91: 0
A92: 34 | J92: 0 | L92: 0 | M92: 0
A93: 35 | J93: 0 | L93: 0 | M93: 0
A94: 36 | J94: 0 | L94: 0 | M94: 0
A95: 37 | J95: 0 | L95: 0 | M95: 0
A96: 38 | J96: 0 | L96: 0 | M96: 0
A97: 39 | J97: 0 | L97: 0 | M97: 0
A98: 40 | J98: 0 | L98: 0 | M98: 0
A99: 41 | J99: 0 | L99: 0 | M99: 0
A100: 42 | J100: 0 | L100: 0 | M100: 0
A101: 43 | J101: 0 | L101: 0 | M101: 0
A102: 44 | J102: 0 | L102: 0 | M102: 0
A103: 45 | J103: 0 | L103: 0 | M103: 0
A104: 46 | J104: 0 | L104: 0 | M104: 0
A105: 47 | J105: 0 | L105: 0 | M105: 0
A106: 48 | J106: 0 | L106: 0 | M106: 0
A107: 49 | J107: 0 | L107: 0 | M107: 0
A108: 50 | J108: 0 | L108: 0 | M108: 0
A109: 51 | J109: 0 | L109: 0 | M109: 0
A110: 52 | J110: 0 | L110: 0 | M110: 0
A111: 53 | J111: 0 | L111: 0 | M111: 0
A112: ปีที่ 3 รวม | G112: =SUM(G113:G165) -> 0 | H112: =SUM(H113:H165) -> 0 | I112: =SUM(L113:L165) -> 0 | J112: =SUM(J113:J165) -> 0 | K112: =(SUM(K113:K165)*60)/1440 -> 0
A113: 1 | E113: =IF(กำหนดวันยื่น!D5="","กรอกข้อมูลในLogbook",กำหนดวันยื่น!D5) -> กรอกข้อมูลในLogbook | J113: =((G113-H113)*$D$2)/1440 -> 0 | L113: 0 | M113: 0
A114: 2 | D114: . | J114: =((G114-H114)*$D$2)/1440 -> 0 | L114: 0 | M114: 0
A115: 3 | J115: 0 | L115: 0 | M115: 0
A116: 4 | J116: 0 | L116: 0 | M116: 0
A117: 5 | J117: 0 | L117: 0 | M117: 0
A118: 6 | J118: 0 | L118: 0 | M118: 0
A119: 7 | J119: 0 | L119: 0 | M119: 0
A120: 8 | J120: 0 | L120: 0 | M120: 0
A121: 9 | J121: 0 | L121: 0 | M121: 0
A122: 10 | J122: 0 | L122: 0 | M122: 0
A123: 11 | J123: 0 | L123: 0 | M123: 0
A124: 12 | J124: 0 | L124: 0 | M124: 0
A125: 13 | J125: 0 | L125: 0 | M125: 0
A126: 14 | J126: 0 | L126: 0 | M126: 0
A127: 15 | J127: 0 | L127: 0 | M127: 0
A128: 16 | J128: 0 | L128: 0 | M128: 0
A129: 17 | J129: 0 | L129: 0 | M129: 0
A130: 18 | J130: 0 | L130: 0 | M130: 0
A131: 19 | J131: 0 | L131: 0 | M131: 0
A132: 20 | J132: 0 | L132: 0 | M132: 0
A133: 21 | J133: 0 | L133: 0 | M133: 0
A134: 22 | J134: 0 | L134: =IF(J134>=$I$2,0,IF(I134="4.ไปอบรม งานอื่นที่มอบหมาย",1,0)) -> 0 | M134: =(K134*60)/1440 -> 0
A135: 23 | J135: 0 | L135: 0 | M135: 0
A136: 24 | J136: 0 | L136: 0 | M136: 0
A137: 25 | J137: 0 | L137: 0 | M137: 0
A138: 26 | J138: 0 | L138: 0 | M138: 0
A139: 27 | J139: 0 | L139: 0 | M139: 0
A140: 28 | J140: 0 | L140: 0 | M140: 0
A141: 29 | J141: 0 | L141: 0 | M141: 0
A142: 30 | J142: 0 | L142: 0 | M142: 0
A143: 31 | J143: 0 | L143: 0 | M143: 0
A144: 32 | J144: 0 | L144: 0 | M144: 0
A145: 33 | J145: 0 | L145: 0 | M145: 0
A146: 34 | J146: 0 | L146: 0 | M146: 0
A147: 35 | J147: 0 | L147: 0 | M147: 0
A148: 36 | J148: 0 | L148: 0 | M148: 0
A149: 37 | J149: 0 | L149: 0 | M149: 0
A150: 38 | J150: 0 | L150: 0 | M150: 0
A151: 39 | J151: 0 | L151: 0 | M151: 0
A152: 40 | J152: 0 | L152: 0 | M152: 0
A153: 41 | J153: 0 | L153: 0 | M153: 0
A154: 42 | J154: 0 | L154: 0 | M154: 0
A155: 43 | J155: 0 | L155: 0 | M155: 0
A156: 44 | J156: 0 | L156: 0 | M156: 0
A157: 45 | J157: 0 | L157: 0 | M157: 0
A158: 46 | J158: 0 | L158: 0 | M158: 0
A159: 47 | J159: 0 | L159: 0 | M159: 0
A160: 48 | J160: 0 | L160: 0 | M160: 0
A161: 49 | J161: 0 | L161: 0 | M161: 0
A162: 50 | J162: 0 | L162: 0 | M162: 0
A163: 51 | J163: 0 | L163: 0 | M163: 0
A164: 52 | J164: 0 | L164: 0 | M164: 0
A165: 53 | J165: 0 | L165: 0 | M165: 0
A166: ปีที่ 4 รวม | G166: =SUM(G167:G219) -> 0 | H166: =SUM(H167:H219) -> 0 | I166: =SUM(L167:L219) -> 0 | J166: =SUM(J167:J219) -> 0 | K166: =(SUM(K167:K219)*60)/1440 -> 0
A167: 1 | E167: =IF(กำหนดวันยื่น!E5="","กรอกข้อมูลในLogbook",กำหนดวันยื่น!E5) -> กรอกข้อมูลในLogbook | J167: =((G167-H167)*$D$2)/1440 -> 0 | L167: 0 | M167: 0
A168: 2 | D168: . | J168: =((G168-H168)*$D$2)/1440 -> 0 | L168: 0 | M168: 0
A169: 3 | J169: 0 | L169: 0 | M169: 0
A170: 4 | J170: 0 | L170: 0 | M170: 0
A171: 5 | J171: 0 | L171: 0 | M171: 0
A172: 6 | J172: 0 | L172: 0 | M172: 0
A173: 7 | J173: 0 | L173: 0 | M173: 0
A174: 8 | J174: 0 | L174: 0 | M174: 0
A175: 9 | J175: 0 | L175: 0 | M175: 0
A176: 10 | J176: 0 | L176: 0 | M176: 0
A177: 11 | J177: 0 | L177: 0 | M177: 0
A178: 12 | J178: 0 | L178: 0 | M178: 0
A179: 13 | J179: 0 | L179: 0 | M179: 0
A180: 14 | J180: 0 | L180: 0 | M180: 0
A181: 15 | J181: 0 | L181: 0 | M181: 0
A182: 16 | J182: 0 | L182: 0 | M182: 0
A183: 17 | J183: 0 | L183: 0 | M183: 0
A184: 18 | J184: 0 | L184: 0 | M184: 0
A185: 19 | J185: 0 | L185: 0 | M185: 0
A186: 20 | J186: 0 | L186: 0 | M186: 0
A187: 21 | J187: 0 | L187: 0 | M187: 0
A188: 22 | J188: 0 | L188: 0 | M188: 0
A189: 23 | J189: 0 | L189: 0 | M189: 0
A190: 24 | J190: 0 | L190: 0 | M190: 0
A191: 25 | J191: 0 | L191: 0 | M191: 0
A192: 26 | J192: 0 | L192: 0 | M192: 0
A193: 27 | J193: 0 | L193: 0 | M193: 0
A194: 28 | J194: 0 | L194: 0 | M194: 0
A195: 29 | J195: 0 | L195: 0 | M195: 0
A196: 30 | J196: 0 | L196: 0 | M196: 0
A197: 31 | J197: 0 | L197: 0 | M197: 0
A198: 32 | J198: 0 | L198: =IF(J198>=$I$2,0,IF(I198="4.ไปอบรม งานอื่นที่มอบหมาย",1,0)) -> 0 | M198: =(K198*60)/1440 -> 0
A199: 33 | J199: 0 | L199: 0 | M199: 0
A200: 34 | J200: 0 | L200: 0 | M200: 0
A201: 35 | J201: 0 | L201: 0 | M201: 0
... 72 more rows

Sheet สรุปข้อมูล วฐ.1ก่อน 5 ก.ค.2560
A1: การนับชั่วโมงสอนในช่วงเวลาก่อนวันที่ 5 กรกฎาคม 2560
A3: ปีที่ | B3: เริ่มวันที่ | C3: ถึงวันที่ | D3: จำนวนชั่วโมงสอนตามตารางสอน | E3: ชั่วโมงปฏิบัติงานตามหน้าที่ความรับผิดชอบด้านการเรียนการสอนและการพัฒนาผู้เรียน | F3: รวม | G3: ชั่วโมงสอนขั้นต่ำตามเกณฑ์ที่ ก.ค.ศ. กำหนด
A4: 1 | B4: =กำหนดวันยื่น!B$5 ->  | C4: =กำหนดวันยื่น!B$7 ->  | D4: =IF(B4="","",'กรอกข้อมูลก่อน 5 ก.ค.2560'!J4) ->  | E4: =IF(B4="","",'กรอกข้อมูลก่อน 5 ก.ค.2560'!K4) ->  | F4: =IF(B4="","",D4+E4) ->  | G4: =IF(B4="","",IF('กรอกข้อมูลก่อน 5 ก.ค.2560'!I4>0,"ไม่ผ่าน","ผ่าน")) -> 
A5: 2 | B5: =กำหนดวันยื่น!C$5 ->  | C5: =กำหนดวันยื่น!C$7 ->  | D5: =IF(B5="","",'กรอกข้อมูลก่อน 5 ก.ค.2560'!J58) ->  | E5: =IF(B5="","",'กรอกข้อมูลก่อน 5 ก.ค.2560'!K58) ->  | F5: =IF(B5="","",D5+E5) ->  | G5: =IF(B5="","",IF('กรอกข้อมูลก่อน 5 ก.ค.2560'!I58>0,"ไม่ผ่าน","ผ่าน")) -> 
A6: 3 | B6: =กำหนดวันยื่น!D$5 ->  | C6: =กำหนดวันยื่น!D$7 ->  | D6: =IF(B6="","",'กรอกข้อมูลก่อน 5 ก.ค.2560'!J112) ->  | E6: =IF(B6="","",'กรอกข้อมูลก่อน 5 ก.ค.2560'!K112) ->  | G6: =IF(B6="","",IF('กรอกข้อมูลก่อน 5 ก.ค.2560'!I112>0,"ไม่ผ่าน","ผ่าน")) -> 
A7: 4 | B7: =กำหนดวันยื่น!E$5 ->  | C7: =กำหนดวันยื่น!E$7 ->  | D7: =IF(B7="","",'กรอกข้อมูลก่อน 5 ก.ค.2560'!J166) ->  | E7: =IF(B7="","",'กรอกข้อมูลก่อน 5 ก.ค.2560'!K166) ->  | G7: =IF(B7="","",IF('กรอกข้อมูลก่อน 5 ก.ค.2560'!I166>0,"ไม่ผ่าน","ผ่าน")) -> 
A8: 5 | B8: =กำหนดวันยื่น!F$5 ->  | C8: =กำหนดวันยื่น!F$7 ->  | D8: =IF(B8="","",'กรอกข้อมูลก่อน 5 ก.ค.2560'!J220) ->  | E8: =IF(B8="","",'กรอกข้อมูลก่อน 5 ก.ค.2560'!K220) ->  | G8: =IF(B8="","",IF('กรอกข้อมูลก่อน 5 ก.ค.2560'!I220>0,"ไม่ผ่าน","ผ่าน")) -> 

Sheet สรุปข้อมูล วฐ.2ก่อน 5 ก.ค.2560
A1: สำหรับบันทึกข้อมูลเพื่อกรอกแบบ วฐ.2
A2: ปีการศึกษา/ปีงบประมาณ | B2: ภาคเรียนที่ | C2: จำนวนชั่วโมงสอนตามตารางสอน | D2: ชั่วโมงปฏิบัติงานตามหน้าที่ความรับผิดชอบด้านการเรียนการสอนและการพัฒนาผู้เรียน | E2: รวม
A3: =IF('กรอกข้อมูลก่อน 5 ก.ค.2560'!B5="","",'กรอกข้อมูลก่อน 5 ก.ค.2560'!B5) -> 2556 | B3: =IF(A3="","",1) -> 1 | C3: =IF(SUMIFS('กรอกข้อมูลก่อน 5 ก.ค.2560'!J$5:J$57,'กรอกข้อมูลก่อน 5 ก.ค.2560'!B$5:B$57,A3,'กรอกข้อมูลก่อน 5 ก.ค.2560'!C$5:C$57,B3)+SUMIFS('กรอกข้อมูลก่อน 5 ก.ค.2560'!J$59:J$111,'กรอกข้อมูลก่อน 5 ก.ค.2560'!B$59:B$111,A3,'กรอกข้อมูลก่อน 5 ก.ค.2560'!C$59:C$111,B3)+SUMIFS('กรอกข้อมูลก่อน 5 ก.ค.2560'!J$113:J$165,'กรอกข้อมูลก่อน 5 ก.ค.2560'!B$113:B$165,A3,'กรอกข้อมูลก่อน 5 ก.ค.2560'!C$113:C$165,B3)+SUMIFS('กรอกข้อมูลก่อน 5 ก.ค.2560'!J$167:J$219,'กรอกข้อมูลก่อน 5 ก.ค.2560'!B$167:B$219,A3,'กรอกข้อมูลก่อน 5 ก.ค.2560'!C$167:C$219,B3)+SUMIFS('กรอกข้อมูลก่อน 5 ก.ค.2560'!J$221:J$273,'กรอกข้อมูลก่อน 5 ก.ค.2560'!B$221:B$273,A3,'กรอกข้อมูลก่อน 5 ก.ค.2560'!C$221:C$273,B3)=0,"",SUMIFS('กรอกข้อมูลก่อน 5 ก.ค.2560'!J$5:J$57,'กรอกข้อมูลก่อน 5 ก.ค.2560'!B$5:B$57,A3,'กรอกข้อมูลก่อน 5 ก.ค.2560'!C$5:C$57,B3)+SUMIFS('กรอกข้อมูลก่อน 5 ก.ค.2560'!J$59:J$111,'กรอกข้อมูลก่อน 5 ก.ค.2560'!B$59:B$111,A3,'กรอกข้อมูลก่อน 5 ก.ค.2560'!C$59:C$111,B3)+SUMIFS('กรอกข้อมูลก่อน 5 ก.ค.2560'!J$113:J$165,'กรอกข้อมูลก่อน 5 ก.ค.2560'!B$113:B$165,A3,'กรอกข้อมูลก่อน 5 ก.ค.2560'!C$113:C$165,B3)+SUMIFS('กรอกข้อมูลก่อน 5 ก.ค.2560'!J$167:J$219,'กรอกข้อมูลก่อน 5 ก.ค.2560'!B$167:B$219,A3,'กรอกข้อมูลก่อน 5 ก.ค.2560'!C$167:C$219,B3)+SUMIFS('กรอกข้อมูลก่อน 5 ก.ค.2560'!J$221:J$273,'กรอกข้อมูลก่อน 5 ก.ค.2560'!B$221:B$273,A3,'กรอกข้อมูลก่อน 5 ก.ค.2560'!C$221:C$273,B3)) ->  | D3: =IF(SUMIFS('กรอกข้อมูลก่อน 5 ก.ค.2560'!M$5:M$57,'กรอกข้อมูลก่อน 5 ก.ค.2560'!B$5:B$57,A3,'กรอกข้อมูลก่อน 5 ก.ค.2560'!C$5:C$57,B3)+SUMIFS('กรอกข้อมูลก่อน 5 ก.ค.2560'!M$59:M$111,'กรอกข้อมูลก่อน 5 ก.ค.2560'!B$59:B$111,A3,'กรอกข้อมูลก่อน 5 ก.ค.2560'!C$59:C$111,B3)+SUMIFS('กรอกข้อมูลก่อน 5 ก.ค.2560'!M$113:M$165,'กรอกข้อมูลก่อน 5 ก.ค.2560'!B$113:B$165,A3,'กรอกข้อมูลก่อน 5 ก.ค.2560'!C$113:C$165,B3)+SUMIFS('กรอกข้อมูลก่อน 5 ก.ค.2560'!M$167:M$219,'กรอกข้อมูลก่อน 5 ก.ค.2560'!B$167:B$219,A3,'กรอกข้อมูลก่อน 5 ก.ค.2560'!C$167:C$219,B3)+SUMIFS('กรอกข้อมูลก่อน 5 ก.ค.2560'!M$221:M$273,'กรอกข้อมูลก่อน 5 ก.ค.2560'!B$221:B$273,A3,'กรอกข้อมูลก่อน 5 ก.ค.2560'!C$221:C$273,B3)=0,"",SUMIFS('กรอกข้อมูลก่อน 5 ก.ค.2560'!M$5:M$57,'กรอกข้อมูลก่อน 5 ก.ค.2560'!B$5:B$57,A3,'กรอกข้อมูลก่อน 5 ก.ค.2560'!C$5:C$57,B3)+SUMIFS('กรอกข้อมูลก่อน 5 ก.ค.2560'!M$59:M$111,'กรอกข้อมูลก่อน 5 ก.ค.2560'!B$59:B$111,A3,'กรอกข้อมูลก่อน 5 ก.ค.2560'!C$59:C$111,B3)+SUMIFS('กรอกข้อมูลก่อน 5 ก.ค.2560'!M$113:M$165,'กรอกข้อมูลก่อน 5 ก.ค.2560'!B$113:B$165,A3,'กรอกข้อมูลก่อน 5 ก.ค.2560'!C$113:C$165,B3)+SUMIFS('กรอกข้อมูลก่อน 5 ก.ค.2560'!M$167:M$219,'กรอกข้อมูลก่อน 5 ก.ค.2560'!B$167:B$219,A3,'กรอกข้อมูลก่อน 5 ก.ค.2560'!C$167:C$219,B3)+SUMIFS('กรอกข้อมูลก่อน 5 ก.ค.2560'!M$221:M$273,'กรอกข้อมูลก่อน 5 ก.ค.2560'!B$221:B$273,A3,'กรอกข้อมูลก่อน 5 ก.ค.2560'!C$221:C$273,B3)) ->  | E3: =IF(AND(C3="",D3=""),"",IF(C3="",D3,IF(D3="",C3,C3+D3))) -> 
A4: =IF(A$3>2559,"",A$3) -> 2556 | B4: =IF(A4="","",2) -> 2 | C4: =IF(SUMIFS('กรอกข้อมูลก่อน 5 ก.ค.2560'!J$5:J$57,'กรอกข้อมูลก่อน 5 ก.ค.2560'!B$5:B$57,A4,'กรอกข้อมูลก่อน 5 ก.ค.2560'!C$5:C$57,B4)+SUMIFS('กรอกข้อมูลก่อน 5 ก.ค.2560'!J$59:J$111,'กรอกข้อมูลก่อน 5 ก.ค.2560'!B$59:B$111,A4,'กรอกข้อมูลก่อน 5 ก.ค.2560'!C$59:C$111,B4)+SUMIFS('กรอกข้อมูลก่อน 5 ก.ค.2560'!J$113:J$165,'กรอกข้อมูลก่อน 5 ก.ค.2560'!B$113:B$165,A4,'กรอกข้อมูลก่อน 5 ก.ค.2560'!C$113:C$165,B4)+SUMIFS('กรอกข้อมูลก่อน 5 ก.ค.2560'!J$167:J$219,'กรอกข้อมูลก่อน 5 ก.ค.2560'!B$167:B$219,A4,'กรอกข้อมูลก่อน 5 ก.ค.2560'!C$167:C$219,B4)+SUMIFS('กรอกข้อมูลก่อน 5 ก.ค.2560'!J$221:J$273,'กรอกข้อมูลก่อน 5 ก.ค.2560'!B$221:B$273,A4,'กรอกข้อมูลก่อน 5 ก.ค.2560'!C$221:C$273,B4)=0,"",SUMIFS('กรอกข้อมูลก่อน 5 ก.ค.2560'!J$5:J$57,'กรอกข้อมูลก่อน 5 ก.ค.2560'!B$5:B$57,A4,'กรอกข้อมูลก่อน 5 ก.ค.2560'!C$5:C$57,B4)+SUMIFS('กรอกข้อมูลก่อน 5 ก.ค.2560'!J$59:J$111,'กรอกข้อมูลก่อน 5 ก.ค.2560'!B$59:B$111,A4,'กรอกข้อมูลก่อน 5 ก.ค.2560'!C$59:C$111,B4)+SUMIFS('กรอกข้อมูลก่อน 5 ก.ค.2560'!J$113:J$165,'กรอกข้อมูลก่อน 5 ก.ค.2560'!B$113:B$165,A4,'กรอกข้อมูลก่อน 5 ก.ค.2560'!C$113:C$165,B4)+SUMIFS('กรอกข้อมูลก่อน 5 ก.ค.2560'!J$167:J$219,'กรอกข้อมูลก่อน 5 ก.ค.2560'!B$167:B$219,A4,'กรอกข้อมูลก่อน 5 ก.ค.2560'!C$167:C$219,B4)+SUMIFS('กรอกข้อมูลก่อน 5 ก.ค.2560'!J$221:J$273,'กรอกข้อมูลก่อน 5 ก.ค.2560'!B$221:B$273,A4,'กรอกข้อมูลก่อน 5 ก.ค.2560'!C$221:C$273,B4)) -> 1.770833333 | D4: =IF(SUMIFS('กรอกข้อมูลก่อน 5 ก.ค.2560'!M$5:M$57,'กรอกข้อมูลก่อน 5 ก.ค.2560'!B$5:B$57,A4,'กรอกข้อมูลก่อน 5 ก.ค.2560'!C$5:C$57,B4)+SUMIFS('กรอกข้อมูลก่อน 5 ก.ค.2560'!M$59:M$111,'กรอกข้อมูลก่อน 5 ก.ค.2560'!B$59:B$111,A4,'กรอกข้อมูลก่อน 5 ก.ค.2560'!C$59:C$111,B4)+SUMIFS('กรอกข้อมูลก่อน 5 ก.ค.2560'!M$113:M$165,'กรอกข้อมูลก่อน 5 ก.ค.2560'!B$113:B$165,A4,'กรอกข้อมูลก่อน 5 ก.ค.2560'!C$113:C$165,B4)+SUMIFS('กรอกข้อมูลก่อน 5 ก.ค.2560'!M$167:M$219,'กรอกข้อมูลก่อน 5 ก.ค.2560'!B$167:B$219,A4,'กรอกข้อมูลก่อน 5 ก.ค.2560'!C$167:C$219,B4)+SUMIFS('กรอกข้อมูลก่อน 5 ก.ค.2560'!M$221:M$273,'กรอกข้อมูลก่อน 5 ก.ค.2560'!B$221:B$273,A4,'กรอกข้อมูลก่อน 5 ก.ค.2560'!C$221:C$273,B4)=0,"",SUMIFS('กรอกข้อมูลก่อน 5 ก.ค.2560'!M$5:M$57,'กรอกข้อมูลก่อน 5 ก.ค.2560'!B$5:B$57,A4,'กรอกข้อมูลก่อน 5 ก.ค.2560'!C$5:C$57,B4)+SUMIFS('กรอกข้อมูลก่อน 5 ก.ค.2560'!M$59:M$111,'กรอกข้อมูลก่อน 5 ก.ค.2560'!B$59:B$111,A4,'กรอกข้อมูลก่อน 5 ก.ค.2560'!C$59:C$111,B4)+SUMIFS('กรอกข้อมูลก่อน 5 ก.ค.2560'!M$113:M$165,'กรอกข้อมูลก่อน 5 ก.ค.2560'!B$113:B$165,A4,'กรอกข้อมูลก่อน 5 ก.ค.2560'!C$113:C$165,B4)+SUMIFS('กรอกข้อมูลก่อน 5 ก.ค.2560'!M$167:M$219,'กรอกข้อมูลก่อน 5 ก.ค.2560'!B$167:B$219,A4,'กรอกข้อมูลก่อน 5 ก.ค.2560'!C$167:C$219,B4)+SUMIFS('กรอกข้อมูลก่อน 5 ก.ค.2560'!M$221:M$273,'กรอกข้อมูลก่อน 5 ก.ค.2560'!B$221:B$273,A4,'กรอกข้อมูลก่อน 5 ก.ค.2560'!C$221:C$273,B4)) -> 0.1111111111 | E4: =IF(AND(C4="",D4=""),"",IF(C4="",D4,IF(D4="",C4,C4+D4))) -> 1.881944444
A5: =IF(A$3>2559,"",A$3) -> 2556 | B5: =IF(A5="","",3) -> 3 | C5: =IF(SUMIFS('กรอกข้อมูลก่อน 5 ก.ค.2560'!J$5:J$57,'กรอกข้อมูลก่อน 5 ก.ค.2560'!B$5:B$57,A5,'กรอกข้อมูลก่อน 5 ก.ค.2560'!C$5:C$57,B5)+SUMIFS('กรอกข้อมูลก่อน 5 ก.ค.2560'!J$59:J$111,'กรอกข้อมูลก่อน 5 ก.ค.2560'!B$59:B$111,A5,'กรอกข้อมูลก่อน 5 ก.ค.2560'!C$59:C$111,B5)+SUMIFS('กรอกข้อมูลก่อน 5 ก.ค.2560'!J$113:J$165,'กรอกข้อมูลก่อน 5 ก.ค.2560'!B$113:B$165,A5,'กรอกข้อมูลก่อน 5 ก.ค.2560'!C$113:C$165,B5)+SUMIFS('กรอกข้อมูลก่อน 5 ก.ค.2560'!J$167:J$219,'กรอกข้อมูลก่อน 5 ก.ค.2560'!B$167:B$219,A5,'กรอกข้อมูลก่อน 5 ก.ค.2560'!C$167:C$219,B5)+SUMIFS('กรอกข้อมูลก่อน 5 ก.ค.2560'!J$221:J$273,'กรอกข้อมูลก่อน 5 ก.ค.2560'!B$221:B$273,A5,'กรอกข้อมูลก่อน 5 ก.ค.2560'!C$221:C$273,B5)=0,"",SUMIFS('กรอกข้อมูลก่อน 5 ก.ค.2560'!J$5:J$57,'กรอกข้อมูลก่อน 5 ก.ค.2560'!B$5:B$57,A5,'กรอกข้อมูลก่อน 5 ก.ค.2560'!C$5:C$57,B5)+SUMIFS('กรอกข้อมูลก่อน 5 ก.ค.2560'!J$59:J$111,'กรอกข้อมูลก่อน 5 ก.ค.2560'!B$59:B$111,A5,'กรอกข้อมูลก่อน 5 ก.ค.2560'!C$59:C$111,B5)+SUMIFS('กรอกข้อมูลก่อน 5 ก.ค.2560'!J$113:J$165,'กรอกข้อมูลก่อน 5 ก.ค.2560'!B$113:B$165,A5,'กรอกข้อมูลก่อน 5 ก.ค.2560'!C$113:C$165,B5)+SUMIFS('กรอกข้อมูลก่อน 5 ก.ค.2560'!J$167:J$219,'กรอกข้อมูลก่อน 5 ก.ค.2560'!B$167:B$219,A5,'กรอกข้อมูลก่อน 5 ก.ค.2560'!C$167:C$219,B5)+SUMIFS('กรอกข้อมูลก่อน 5 ก.ค.2560'!J$221:J$273,'กรอกข้อมูลก่อน 5 ก.ค.2560'!B$221:B$273,A5,'กรอกข้อมูลก่อน 5 ก.ค.2560'!C$221:C$273,B5)) ->  | D5: =IF(SUMIFS('กรอกข้อมูลก่อน 5 ก.ค.2560'!M$5:M$57,'กรอกข้อมูลก่อน 5 ก.ค.2560'!B$5:B$57,A5,'กรอกข้อมูลก่อน 5 ก.ค.2560'!C$5:C$57,B5)+SUMIFS('กรอกข้อมูลก่อน 5 ก.ค.2560'!M$59:M$111,'กรอกข้อมูลก่อน 5 ก.ค.2560'!B$59:B$111,A5,'กรอกข้อมูลก่อน 5 ก.ค.2560'!C$59:C$111,B5)+SUMIFS('กรอกข้อมูลก่อน 5 ก.ค.2560'!M$113:M$165,'กรอกข้อมูลก่อน 5 ก.ค.2560'!B$113:B$165,A5,'กรอกข้อมูลก่อน 5 ก.ค.2560'!C$113:C$165,B5)+SUMIFS('กรอกข้อมูลก่อน 5 ก.ค.2560'!M$167:M$219,'กรอกข้อมูลก่อน 5 ก.ค.2560'!B$167:B$219,A5,'กรอกข้อมูลก่อน 5 ก.ค.2560'!C$167:C$219,B5)+SUMIFS('กรอกข้อมูลก่อน 5 ก.ค.2560'!M$221:M$273,'กรอกข้อมูลก่อน 5 ก.ค.2560'!B$221:B$273,A5,'กรอกข้อมูลก่อน 5 ก.ค.2560'!C$221:C$273,B5)=0,"",SUMIFS('กรอกข้อมูลก่อน 5 ก.ค.2560'!M$5:M$57,'กรอกข้อมูลก่อน 5 ก.ค.2560'!B$5:B$57,A5,'กรอกข้อมูลก่อน 5 ก.ค.2560'!C$5:C$57,B5)+SUMIFS('กรอกข้อมูลก่อน 5 ก.ค.2560'!M$59:M$111,'กรอกข้อมูลก่อน 5 ก.ค.2560'!B$59:B$111,A5,'กรอกข้อมูลก่อน 5 ก.ค.2560'!C$59:C$111,B5)+SUMIFS('กรอกข้อมูลก่อน 5 ก.ค.2560'!M$113:M$165,'กรอกข้อมูลก่อน 5 ก.ค.2560'!B$113:B$165,A5,'กรอกข้อมูลก่อน 5 ก.ค.2560'!C$113:C$165,B5)+SUMIFS('กรอกข้อมูลก่อน 5 ก.ค.2560'!M$167:M$219,'กรอกข้อมูลก่อน 5 ก.ค.2560'!B$167:B$219,A5,'กรอกข้อมูลก่อน 5 ก.ค.2560'!C$167:C$219,B5)+SUMIFS('กรอกข้อมูลก่อน 5 ก.ค.2560'!M$221:M$273,'กรอกข้อมูลก่อน 5 ก.ค.2560'!B$221:B$273,A5,'กรอกข้อมูลก่อน 5 ก.ค.2560'!C$221:C$273,B5)) -> 
A6: =IF(A$3="","",IF(A$3+1>2560,"",A$3+1)) -> 2557 | B6: =IF(A6="","",1) -> 1 | C6: =IF(SUMIFS('กรอกข้อมูลก่อน 5 ก.ค.2560'!J$5:J$57,'กรอกข้อมูลก่อน 5 ก.ค.2560'!B$5:B$57,A6,'กรอกข้อมูลก่อน 5 ก.ค.2560'!C$5:C$57,B6)+SUMIFS('กรอกข้อมูลก่อน 5 ก.ค.2560'!J$59:J$111,'กรอกข้อมูลก่อน 5 ก.ค.2560'!B$59:B$111,A6,'กรอกข้อมูลก่อน 5 ก.ค.2560'!C$59:C$111,B6)+SUMIFS('กรอกข้อมูลก่อน 5 ก.ค.2560'!J$113:J$165,'กรอกข้อมูลก่อน 5 ก.ค.2560'!B$113:B$165,A6,'กรอกข้อมูลก่อน 5 ก.ค.2560'!C$113:C$165,B6)+SUMIFS('กรอกข้อมูลก่อน 5 ก.ค.2560'!J$167:J$219,'กรอกข้อมูลก่อน 5 ก.ค.2560'!B$167:B$219,A6,'กรอกข้อมูลก่อน 5 ก.ค.2560'!C$167:C$219,B6)+SUMIFS('กรอกข้อมูลก่อน 5 ก.ค.2560'!J$221:J$273,'กรอกข้อมูลก่อน 5 ก.ค.2560'!B$221:B$273,A6,'กรอกข้อมูลก่อน 5 ก.ค.2560'!C$221:C$273,B6)=0,"",SUMIFS('กรอกข้อมูลก่อน 5 ก.ค.2560'!J$5:J$57,'กรอกข้อมูลก่อน 5 ก.ค.2560'!B$5:B$57,A6,'กรอกข้อมูลก่อน 5 ก.ค.2560'!C$5:C$57,B6)+SUMIFS('กรอกข้อมูลก่อน 5 ก.ค.2560'!J$59:J$111,'กรอกข้อมูลก่อน 5 ก.ค.2560'!B$59:B$111,A6,'กรอกข้อมูลก่อน 5 ก.ค.2560'!C$59:C$111,B6)+SUMIFS('กรอกข้อมูลก่อน 5 ก.ค.2560'!J$113:J$165,'กรอกข้อมูลก่อน 5 ก.ค.2560'!B$113:B$165,A6,'กรอกข้อมูลก่อน 5 ก.ค.2560'!C$113:C$165,B6)+SUMIFS('กรอกข้อมูลก่อน 5 ก.ค.2560'!J$167:J$219,'กรอกข้อมูลก่อน 5 ก.ค.2560'!B$167:B$219,A6,'กรอกข้อมูลก่อน 5 ก.ค.2560'!C$167:C$219,B6)+SUMIFS('กรอกข้อมูลก่อน 5 ก.ค.2560'!J$221:J$273,'กรอกข้อมูลก่อน 5 ก.ค.2560'!B$221:B$273,A6,'กรอกข้อมูลก่อน 5 ก.ค.2560'!C$221:C$273,B6)) ->  | D6: =IF(SUMIFS('กรอกข้อมูลก่อน 5 ก.ค.2560'!M$5:M$57,'กรอกข้อมูลก่อน 5 ก.ค.2560'!B$5:B$57,A6,'กรอกข้อมูลก่อน 5 ก.ค.2560'!C$5:C$57,B6)+SUMIFS('กรอกข้อมูลก่อน 5 ก.ค.2560'!M$59:M$111,'กรอกข้อมูลก่อน 5 ก.ค.2560'!B$59:B$111,A6,'กรอกข้อมูลก่อน 5 ก.ค.2560'!C$59:C$111,B6)+SUMIFS('กรอกข้อมูลก่อน 5 ก.ค.2560'!M$113:M$165,'กรอกข้อมูลก่อน 5 ก.ค.2560'!B$113:B$165,A6,'กรอกข้อมูลก่อน 5 ก.ค.2560'!C$113:C$165,B6)+SUMIFS('กรอกข้อมูลก่อน 5 ก.ค.2560'!M$167:M$219,'กรอกข้อมูลก่อน 5 ก.ค.2560'!B$167:B$219,A6,'กรอกข้อมูลก่อน 5 ก.ค.2560'!C$167:C$219,B6)+SUMIFS('กรอกข้อมูลก่อน 5 ก.ค.2560'!M$221:M$273,'กรอกข้อมูลก่อน 5 ก.ค.2560'!B$221:B$273,A6,'กรอกข้อมูลก่อน 5 ก.ค.2560'!C$221:C$273,B6)=0,"",SUMIFS('กรอกข้อมูลก่อน 5 ก.ค.2560'!M$5:M$57,'กรอกข้อมูลก่อน 5 ก.ค.2560'!B$5:B$57,A6,'กรอกข้อมูลก่อน 5 ก.ค.2560'!C$5:C$57,B6)+SUMIFS('กรอกข้อมูลก่อน 5 ก.ค.2560'!M$59:M$111,'กรอกข้อมูลก่อน 5 ก.ค.2560'!B$59:B$111,A6,'กรอกข้อมูลก่อน 5 ก.ค.2560'!C$59:C$111,B6)+SUMIFS('กรอกข้อมูลก่อน 5 ก.ค.2560'!M$113:M$165,'กรอกข้อมูลก่อน 5 ก.ค.2560'!B$113:B$165,A6,'กรอกข้อมูลก่อน 5 ก.ค.2560'!C$113:C$165,B6)+SUMIFS('กรอกข้อมูลก่อน 5 ก.ค.2560'!M$167:M$219,'กรอกข้อมูลก่อน 5 ก.ค.2560'!B$167:B$219,A6,'กรอกข้อมูลก่อน 5 ก.ค.2560'!C$167:C$219,B6)+SUMIFS('กรอกข้อมูลก่อน 5 ก.ค.2560'!M$221:M$273,'กรอกข้อมูลก่อน 5 ก.ค.2560'!B$221:B$273,A6,'กรอกข้อมูลก่อน 5 ก.ค.2560'!C$221:C$273,B6)) -> 
A7: =IF(A$3="","",IF(A$6>2559,"",A$3+1)) -> 2557 | B7: =IF(A7="","",2) -> 2 | C7: =IF(SUMIFS('กรอกข้อมูลก่อน 5 ก.ค.2560'!J$5:J$57,'กรอกข้อมูลก่อน 5 ก.ค.2560'!B$5:B$57,A7,'กรอกข้อมูลก่อน 5 ก.ค.2560'!C$5:C$57,B7)+SUMIFS('กรอกข้อมูลก่อน 5 ก.ค.2560'!J$59:J$111,'กรอกข้อมูลก่อน 5 ก.ค.2560'!B$59:B$111,A7,'กรอกข้อมูลก่อน 5 ก.ค.2560'!C$59:C$111,B7)+SUMIFS('กรอกข้อมูลก่อน 5 ก.ค.2560'!J$113:J$165,'กรอกข้อมูลก่อน 5 ก.ค.2560'!B$113:B$165,A7,'กรอกข้อมูลก่อน 5 ก.ค.2560'!C$113:C$165,B7)+SUMIFS('กรอกข้อมูลก่อน 5 ก.ค.2560'!J$167:J$219,'กรอกข้อมูลก่อน 5 ก.ค.2560'!B$167:B$219,A7,'กรอกข้อมูลก่อน 5 ก.ค.2560'!C$167:C$219,B7)+SUMIFS('กรอกข้อมูลก่อน 5 ก.ค.2560'!J$221:J$273,'กรอกข้อมูลก่อน 5 ก.ค.2560'!B$221:B$273,A7,'กรอกข้อมูลก่อน 5 ก.ค.2560'!C$221:C$273,B7)=0,"",SUMIFS('กรอกข้อมูลก่อน 5 ก.ค.2560'!J$5:J$57,'กรอกข้อมูลก่อน 5 ก.ค.2560'!B$5:B$57,A7,'กรอกข้อมูลก่อน 5 ก.ค.2560'!C$5:C$57,B7)+SUMIFS('กรอกข้อมูลก่อน 5 ก.ค.2560'!J$59:J$111,'กรอกข้อมูลก่อน 5 ก.ค.2560'!B$59:B$111,A7,'กรอกข้อมูลก่อน 5 ก.ค.2560'!C$59:C$111,B7)+SUMIFS('กรอกข้อมูลก่อน 5 ก.ค.2560'!J$113:J$165,'กรอกข้อมูลก่อน 5 ก.ค.2560'!B$113:B$165,A7,'กรอกข้อมูลก่อน 5 ก.ค.2560'!C$113:C$165,B7)+SUMIFS('กรอกข้อมูลก่อน 5 ก.ค.2560'!J$167:J$219,'กรอกข้อมูลก่อน 5 ก.ค.2560'!B$167:B$219,A7,'กรอกข้อมูลก่อน 5 ก.ค.2560'!C$167:C$219,B7)+SUMIFS('กรอกข้อมูลก่อน 5 ก.ค.2560'!J$221:J$273,'กรอกข้อมูลก่อน 5 ก.ค.2560'!B$221:B$273,A7,'กรอกข้อมูลก่อน 5 ก.ค.2560'!C$221:C$273,B7)) ->  | D7: =IF(SUMIFS('กรอกข้อมูลก่อน 5 ก.ค.2560'!M$5:M$57,'กรอกข้อมูลก่อน 5 ก.ค.2560'!B$5:B$57,A7,'กรอกข้อมูลก่อน 5 ก.ค.2560'!C$5:C$57,B7)+SUMIFS('กรอกข้อมูลก่อน 5 ก.ค.2560'!M$59:M$111,'กรอกข้อมูลก่อน 5 ก.ค.2560'!B$59:B$111,A7,'กรอกข้อมูลก่อน 5 ก.ค.2560'!C$59:C$111,B7)+SUMIFS('กรอกข้อมูลก่อน 5 ก.ค.2560'!M$113:M$165,'กรอกข้อมูลก่อน 5 ก.ค.2560'!B$113:B$165,A7,'กรอกข้อมูลก่อน 5 ก.ค.2560'!C$113:C$165,B7)+SUMIFS('กรอกข้อมูลก่อน 5 ก.ค.2560'!M$167:M$219,'กรอกข้อมูลก่อน 5 ก.ค.2560'!B$167:B$219,A7,'กรอกข้อมูลก่อน 5 ก.ค.2560'!C$167:C$219,B7)+SUMIFS('กรอกข้อมูลก่อน 5 ก.ค.2560'!M$221:M$273,'กรอกข้อมูลก่อน 5 ก.ค.2560'!B$221:B$273,A7,'กรอกข้อมูลก่อน 5 ก.ค.2560'!C$221:C$273,B7)=0,"",SUMIFS('กรอกข้อมูลก่อน 5 ก.ค.2560'!M$5:M$57,'กรอกข้อมูลก่อน 5 ก.ค.2560'!B$5:B$57,A7,'กรอกข้อมูลก่อน 5 ก.ค.2560'!C$5:C$57,B7)+SUMIFS('กรอกข้อมูลก่อน 5 ก.ค.2560'!M$59:M$111,'กรอกข้อมูลก่อน 5 ก.ค.2560'!B$59:B$111,A7,'กรอกข้อมูลก่อน 5 ก.ค.2560'!C$59:C$111,B7)+SUMIFS('กรอกข้อมูลก่อน 5 ก.ค.2560'!M$113:M$165,'กรอกข้อมูลก่อน 5 ก.ค.2560'!B$113:B$165,A7,'กรอกข้อมูลก่อน 5 ก.ค.2560'!C$113:C$165,B7)+SUMIFS('กรอกข้อมูลก่อน 5 ก.ค.2560'!M$167:M$219,'กรอกข้อมูลก่อน 5 ก.ค.2560'!B$167:B$219,A7,'กรอกข้อมูลก่อน 5 ก.ค.2560'!C$167:C$219,B7)+SUMIFS('กรอกข้อมูลก่อน 5 ก.ค.2560'!M$221:M$273,'กรอกข้อมูลก่อน 5 ก.ค.2560'!B$221:B$273,A7,'กรอกข้อมูลก่อน 5 ก.ค.2560'!C$221:C$273,B7)) -> 
A8: =IF(A$3="","",IF(A$6>2559,"",A$3+1)) -> 2557 | B8: =IF(A8="","",3) -> 3 | C8: =IF(SUMIFS('กรอกข้อมูลก่อน 5 ก.ค.2560'!J$5:J$57,'กรอกข้อมูลก่อน 5 ก.ค.2560'!B$5:B$57,A8,'กรอกข้อมูลก่อน 5 ก.ค.2560'!C$5:C$57,B8)+SUMIFS('กรอกข้อมูลก่อน 5 ก.ค.2560'!J$59:J$111,'กรอกข้อมูลก่อน 5 ก.ค.2560'!B$59:B$111,A8,'กรอกข้อมูลก่อน 5 ก.ค.2560'!C$59:C$111,B8)+SUMIFS('กรอกข้อมูลก่อน 5 ก.ค.2560'!J$113:J$165,'กรอกข้อมูลก่อน 5 ก.ค.2560'!B$113:B$165,A8,'กรอกข้อมูลก่อน 5 ก.ค.2560'!C$113:C$165,B8)+SUMIFS('กรอกข้อมูลก่อน 5 ก.ค.2560'!J$167:J$219,'กรอกข้อมูลก่อน 5 ก.ค.2560'!B$167:B$219,A8,'กรอกข้อมูลก่อน 5 ก.ค.2560'!C$167:C$219,B8)+SUMIFS('กรอกข้อมูลก่อน 5 ก.ค.2560'!J$221:J$273,'กรอกข้อมูลก่อน 5 ก.ค.2560'!B$221:B$273,A8,'กรอกข้อมูลก่อน 5 ก.ค.2560'!C$221:C$273,B8)=0,"",SUMIFS('กรอกข้อมูลก่อน 5 ก.ค.2560'!J$5:J$57,'กรอกข้อมูลก่อน 5 ก.ค.2560'!B$5:B$57,A8,'กรอกข้อมูลก่อน 5 ก.ค.2560'!C$5:C$57,B8)+SUMIFS('กรอกข้อมูลก่อน 5 ก.ค.2560'!J$59:J$111,'กรอกข้อมูลก่อน 5 ก.ค.2560'!B$59:B$111,A8,'กรอกข้อมูลก่อน 5 ก.ค.2560'!C$59:C$111,B8)+SUMIFS('กรอกข้อมูลก่อน 5 ก.ค.2560'!J$113:J$165,'กรอกข้อมูลก่อน 5 ก.ค.2560'!B$113:B$165,A8,'กรอกข้อมูลก่อน 5 ก.ค.2560'!C$113:C$165,B8)+SUMIFS('กรอกข้อมูลก่อน 5 ก.ค.2560'!J$167:J$219,'กรอกข้อมูลก่อน 5 ก.ค.2560'!B$167:B$219,A8,'กรอกข้อมูลก่อน 5 ก.ค.2560'!C$167:C$219,B8)+SUMIFS('กรอกข้อมูลก่อน 5 ก.ค.2560'!J$221:J$273,'กรอกข้อมูลก่อน 5 ก.ค.2560'!B$221:B$273,A8,'กรอกข้อมูลก่อน 5 ก.ค.2560'!C$221:C$273,B8)) ->  | D8: =IF(SUMIFS('กรอกข้อมูลก่อน 5 ก.ค.2560'!M$5:M$57,'กรอกข้อมูลก่อน 5 ก.ค.2560'!B$5:B$57,A8,'กรอกข้อมูลก่อน 5 ก.ค.2560'!C$5:C$57,B8)+SUMIFS('กรอกข้อมูลก่อน 5 ก.ค.2560'!M$59:M$111,'กรอกข้อมูลก่อน 5 ก.ค.2560'!B$59:B$111,A8,'กรอกข้อมูลก่อน 5 ก.ค.2560'!C$59:C$111,B8)+SUMIFS('กรอกข้อมูลก่อน 5 ก.ค.2560'!M$113:M$165,'กรอกข้อมูลก่อน 5 ก.ค.2560'!B$113:B$165,A8,'กรอกข้อมูลก่อน 5 ก.ค.2560'!C$113:C$165,B8)+SUMIFS('กรอกข้อมูลก่อน 5 ก.ค.2560'!M$167:M$219,'กรอกข้อมูลก่อน 5 ก.ค.2560'!B$167:B$219,A8,'กรอกข้อมูลก่อน 5 ก.ค.2560'!C$167:C$219,B8)+SUMIFS('กรอกข้อมูลก่อน 5 ก.ค.2560'!M$221:M$273,'กรอกข้อมูลก่อน 5 ก.ค.2560'!B$221:B$273,A8,'กรอกข้อมูลก่อน 5 ก.ค.2560'!C$221:C$273,B8)=0,"",SUMIFS('กรอกข้อมูลก่อน 5 ก.ค.2560'!M$5:M$57,'กรอกข้อมูลก่อน 5 ก.ค.2560'!B$5:B$57,A8,'กรอกข้อมูลก่อน 5 ก.ค.2560'!C$5:C$57,B8)+SUMIFS('กรอกข้อมูลก่อน 5 ก.ค.2560'!M$59:M$111,'กรอกข้อมูลก่อน 5 ก.ค.2560'!B$59:B$111,A8,'กรอกข้อมูลก่อน 5 ก.ค.2560'!C$59:C$111,B8)+SUMIFS('กรอกข้อมูลก่อน 5 ก.ค.2560'!M$113:M$165,'กรอกข้อมูลก่อน 5 ก.ค.2560'!B$113:B$165,A8,'กรอกข้อมูลก่อน 5 ก.ค.2560'!C$113:C$165,B8)+SUMIFS('กรอกข้อมูลก่อน 5 ก.ค.2560'!M$167:M$219,'กรอกข้อมูลก่อน 5 ก.ค.2560'!B$167:B$219,A8,'กรอกข้อมูลก่อน 5 ก.ค.2560'!C$167:C$219,B8)+SUMIFS('กรอกข้อมูลก่อน 5 ก.ค.2560'!M$221:M$273,'กรอกข้อมูลก่อน 5 ก.ค.2560'!B$221:B$273,A8,'กรอกข้อมูลก่อน 5 ก.ค.2560'!C$221:C$273,B8)) -> 
A9: =IF(A$3="","",IF(A$3+2>2560,"",A$3+2)) -> 2558 | B9: 1 | C9: =IF(SUMIFS('กรอกข้อมูลก่อน 5 ก.ค.2560'!J$5:J$57,'กรอกข้อมูลก่อน 5 ก.ค.2560'!B$5:B$57,A9,'กรอกข้อมูลก่อน 5 ก.ค.2560'!C$5:C$57,B9)+SUMIFS('กรอกข้อมูลก่อน 5 ก.ค.2560'!J$59:J$111,'กรอกข้อมูลก่อน 5 ก.ค.2560'!B$59:B$111,A9,'กรอกข้อมูลก่อน 5 ก.ค.2560'!C$59:C$111,B9)+SUMIFS('กรอกข้อมูลก่อน 5 ก.ค.2560'!J$113:J$165,'กรอกข้อมูลก่อน 5 ก.ค.2560'!B$113:B$165,A9,'กรอกข้อมูลก่อน 5 ก.ค.2560'!C$113:C$165,B9)+SUMIFS('กรอกข้อมูลก่อน 5 ก.ค.2560'!J$167:J$219,'กรอกข้อมูลก่อน 5 ก.ค.2560'!B$167:B$219,A9,'กรอกข้อมูลก่อน 5 ก.ค.2560'!C$167:C$219,B9)+SUMIFS('กรอกข้อมูลก่อน 5 ก.ค.2560'!J$221:J$273,'กรอกข้อมูลก่อน 5 ก.ค.2560'!B$221:B$273,A9,'กรอกข้อมูลก่อน 5 ก.ค.2560'!C$221:C$273,B9)=0,"",SUMIFS('กรอกข้อมูลก่อน 5 ก.ค.2560'!J$5:J$57,'กรอกข้อมูลก่อน 5 ก.ค.2560'!B$5:B$57,A9,'กรอกข้อมูลก่อน 5 ก.ค.2560'!C$5:C$57,B9)+SUMIFS('กรอกข้อมูลก่อน 5 ก.ค.2560'!J$59:J$111,'กรอกข้อมูลก่อน 5 ก.ค.2560'!B$59:B$111,A9,'กรอกข้อมูลก่อน 5 ก.ค.2560'!C$59:C$111,B9)+SUMIFS('กรอกข้อมูลก่อน 5 ก.ค.2560'!J$113:J$165,'กรอกข้อมูลก่อน 5 ก.ค.2560'!B$113:B$165,A9,'กรอกข้อมูลก่อน 5 ก.ค.2560'!C$113:C$165,B9)+SUMIFS('กรอกข้อมูลก่อน 5 ก.ค.2560'!J$167:J$219,'กรอกข้อมูลก่อน 5 ก.ค.2560'!B$167:B$219,A9,'กรอกข้อมูลก่อน 5 ก.ค.2560'!C$167:C$219,B9)+SUMIFS('กรอกข้อมูลก่อน 5 ก.ค.2560'!J$221:J$273,'กรอกข้อมูลก่อน 5 ก.ค.2560'!B$221:B$273,A9,'กรอกข้อมูลก่อน 5 ก.ค.2560'!C$221:C$273,B9)) ->  | D9: =IF(SUMIFS('กรอกข้อมูลก่อน 5 ก.ค.2560'!M$5:M$57,'กรอกข้อมูลก่อน 5 ก.ค.2560'!B$5:B$57,A9,'กรอกข้อมูลก่อน 5 ก.ค.2560'!C$5:C$57,B9)+SUMIFS('กรอกข้อมูลก่อน 5 ก.ค.2560'!M$59:M$111,'กรอกข้อมูลก่อน 5 ก.ค.2560'!B$59:B$111,A9,'กรอกข้อมูลก่อน 5 ก.ค.2560'!C$59:C$111,B9)+SUMIFS('กรอกข้อมูลก่อน 5 ก.ค.2560'!M$113:M$165,'กรอกข้อมูลก่อน 5 ก.ค.2560'!B$113:B$165,A9,'กรอกข้อมูลก่อน 5 ก.ค.2560'!C$113:C$165,B9)+SUMIFS('กรอกข้อมูลก่อน 5 ก.ค.2560'!M$167:M$219,'กรอกข้อมูลก่อน 5 ก.ค.2560'!B$167:B$219,A9,'กรอกข้อมูลก่อน 5 ก.ค.2560'!C$167:C$219,B9)+SUMIFS('กรอกข้อมูลก่อน 5 ก.ค.2560'!M$221:M$273,'กรอกข้อมูลก่อน 5 ก.ค.2560'!B$221:B$273,A9,'กรอกข้อมูลก่อน 5 ก.ค.2560'!C$221:C$273,B9)=0,"",SUMIFS('กรอกข้อมูลก่อน 5 ก.ค.2560'!M$5:M$57,'กรอกข้อมูลก่อน 5 ก.ค.2560'!B$5:B$57,A9,'กรอกข้อมูลก่อน 5 ก.ค.2560'!C$5:C$57,B9)+SUMIFS('กรอกข้อมูลก่อน 5 ก.ค.2560'!M$59:M$111,'กรอกข้อมูลก่อน 5 ก.ค.2560'!B$59:B$111,A9,'กรอกข้อมูลก่อน 5 ก.ค.2560'!C$59:C$111,B9)+SUMIFS('กรอกข้อมูลก่อน 5 ก.ค.2560'!M$113:M$165,'กรอกข้อมูลก่อน 5 ก.ค.2560'!B$113:B$165,A9,'กรอกข้อมูลก่อน 5 ก.ค.2560'!C$113:C$165,B9)+SUMIFS('กรอกข้อมูลก่อน 5 ก.ค.2560'!M$167:M$219,'กรอกข้อมูลก่อน 5 ก.ค.2560'!B$167:B$219,A9,'กรอกข้อมูลก่อน 5 ก.ค.2560'!C$167:C$219,B9)+SUMIFS('กรอกข้อมูลก่อน 5 ก.ค.2560'!M$221:M$273,'กรอกข้อมูลก่อน 5 ก.ค.2560'!B$221:B$273,A9,'กรอกข้อมูลก่อน 5 ก.ค.2560'!C$221:C$273,B9)) -> 
A10: =IF(A$3="","",IF(A$9>2559,"",A$3+2)) -> 2558 | B10: =IF(A10="","",2) -> 2 | C10: =IF(SUMIFS('กรอกข้อมูลก่อน 5 ก.ค.2560'!J$5:J$57,'กรอกข้อมูลก่อน 5 ก.ค.2560'!B$5:B$57,A10,'กรอกข้อมูลก่อน 5 ก.ค.2560'!C$5:C$57,B10)+SUMIFS('กรอกข้อมูลก่อน 5 ก.ค.2560'!J$59:J$111,'กรอกข้อมูลก่อน 5 ก.ค.2560'!B$59:B$111,A10,'กรอกข้อมูลก่อน 5 ก.ค.2560'!C$59:C$111,B10)+SUMIFS('กรอกข้อมูลก่อน 5 ก.ค.2560'!J$113:J$165,'กรอกข้อมูลก่อน 5 ก.ค.2560'!B$113:B$165,A10,'กรอกข้อมูลก่อน 5 ก.ค.2560'!C$113:C$165,B10)+SUMIFS('กรอกข้อมูลก่อน 5 ก.ค.2560'!J$167:J$219,'กรอกข้อมูลก่อน 5 ก.ค.2560'!B$167:B$219,A10,'กรอกข้อมูลก่อน 5 ก.ค.2560'!C$167:C$219,B10)+SUMIFS('กรอกข้อมูลก่อน 5 ก.ค.2560'!J$221:J$273,'กรอกข้อมูลก่อน 5 ก.ค.2560'!B$221:B$273,A10,'กรอกข้อมูลก่อน 5 ก.ค.2560'!C$221:C$273,B10)=0,"",SUMIFS('กรอกข้อมูลก่อน 5 ก.ค.2560'!J$5:J$57,'กรอกข้อมูลก่อน 5 ก.ค.2560'!B$5:B$57,A10,'กรอกข้อมูลก่อน 5 ก.ค.2560'!C$5:C$57,B10)+SUMIFS('กรอกข้อมูลก่อน 5 ก.ค.2560'!J$59:J$111,'กรอกข้อมูลก่อน 5 ก.ค.2560'!B$59:B$111,A10,'กรอกข้อมูลก่อน 5 ก.ค.2560'!C$59:C$111,B10)+SUMIFS('กรอกข้อมูลก่อน 5 ก.ค.2560'!J$113:J$165,'กรอกข้อมูลก่อน 5 ก.ค.2560'!B$113:B$165,A10,'กรอกข้อมูลก่อน 5 ก.ค.2560'!C$113:C$165,B10)+SUMIFS('กรอกข้อมูลก่อน 5 ก.ค.2560'!J$167:J$219,'กรอกข้อมูลก่อน 5 ก.ค.2560'!B$167:B$219,A10,'กรอกข้อมูลก่อน 5 ก.ค.2560'!C$167:C$219,B10)+SUMIFS('กรอกข้อมูลก่อน 5 ก.ค.2560'!J$221:J$273,'กรอกข้อมูลก่อน 5 ก.ค.2560'!B$221:B$273,A10,'กรอกข้อมูลก่อน 5 ก.ค.2560'!C$221:C$273,B10)) ->  | D10: =IF(SUMIFS('กรอกข้อมูลก่อน 5 ก.ค.2560'!M$5:M$57,'กรอกข้อมูลก่อน 5 ก.ค.2560'!B$5:B$57,A10,'กรอกข้อมูลก่อน 5 ก.ค.2560'!C$5:C$57,B10)+SUMIFS('กรอกข้อมูลก่อน 5 ก.ค.2560'!M$59:M$111,'กรอกข้อมูลก่อน 5 ก.ค.2560'!B$59:B$111,A10,'กรอกข้อมูลก่อน 5 ก.ค.2560'!C$59:C$111,B10)+SUMIFS('กรอกข้อมูลก่อน 5 ก.ค.2560'!M$113:M$165,'กรอกข้อมูลก่อน 5 ก.ค.2560'!B$113:B$165,A10,'กรอกข้อมูลก่อน 5 ก.ค.2560'!C$113:C$165,B10)+SUMIFS('กรอกข้อมูลก่อน 5 ก.ค.2560'!M$167:M$219,'กรอกข้อมูลก่อน 5 ก.ค.2560'!B$167:B$219,A10,'กรอกข้อมูลก่อน 5 ก.ค.2560'!C$167:C$219,B10)+SUMIFS('กรอกข้อมูลก่อน 5 ก.ค.2560'!M$221:M$273,'กรอกข้อมูลก่อน 5 ก.ค.2560'!B$221:B$273,A10,'กรอกข้อมูลก่อน 5 ก.ค.2560'!C$221:C$273,B10)=0,"",SUMIFS('กรอกข้อมูลก่อน 5 ก.ค.2560'!M$5:M$57,'กรอกข้อมูลก่อน 5 ก.ค.2560'!B$5:B$57,A10,'กรอกข้อมูลก่อน 5 ก.ค.2560'!C$5:C$57,B10)+SUMIFS('กรอกข้อมูลก่อน 5 ก.ค.2560'!M$59:M$111,'กรอกข้อมูลก่อน 5 ก.ค.2560'!B$59:B$111,A10,'กรอกข้อมูลก่อน 5 ก.ค.2560'!C$59:C$111,B10)+SUMIFS('กรอกข้อมูลก่อน 5 ก.ค.2560'!M$113:M$165,'กรอกข้อมูลก่อน 5 ก.ค.2560'!B$113:B$165,A10,'กรอกข้อมูลก่อน 5 ก.ค.2560'!C$113:C$165,B10)+SUMIFS('กรอกข้อมูลก่อน 5 ก.ค.2560'!M$167:M$219,'กรอกข้อมูลก่อน 5 ก.ค.2560'!B$167:B$219,A10,'กรอกข้อมูลก่อน 5 ก.ค.2560'!C$167:C$219,B10)+SUMIFS('กรอกข้อมูลก่อน 5 ก.ค.2560'!M$221:M$273,'กรอกข้อมูลก่อน 5 ก.ค.2560'!B$221:B$273,A10,'กรอกข้อมูลก่อน 5 ก.ค.2560'!C$221:C$273,B10)) -> 
A11: =IF(A$3="","",IF(A$9>2559,"",A$3+2)) -> 2558 | B11: =IF(A11="","",3) -> 3 | C11: =IF(SUMIFS('กรอกข้อมูลก่อน 5 ก.ค.2560'!J$5:J$57,'กรอกข้อมูลก่อน 5 ก.ค.2560'!B$5:B$57,A11,'กรอกข้อมูลก่อน 5 ก.ค.2560'!C$5:C$57,B11)+SUMIFS('กรอกข้อมูลก่อน 5 ก.ค.2560'!J$59:J$111,'กรอกข้อมูลก่อน 5 ก.ค.2560'!B$59:B$111,A11,'กรอกข้อมูลก่อน 5 ก.ค.2560'!C$59:C$111,B11)+SUMIFS('กรอกข้อมูลก่อน 5 ก.ค.2560'!J$113:J$165,'กรอกข้อมูลก่อน 5 ก.ค.2560'!B$113:B$165,A11,'กรอกข้อมูลก่อน 5 ก.ค.2560'!C$113:C$165,B11)+SUMIFS('กรอกข้อมูลก่อน 5 ก.ค.2560'!J$167:J$219,'กรอกข้อมูลก่อน 5 ก.ค.2560'!B$167:B$219,A11,'กรอกข้อมูลก่อน 5 ก.ค.2560'!C$167:C$219,B11)+SUMIFS('กรอกข้อมูลก่อน 5 ก.ค.2560'!J$221:J$273,'กรอกข้อมูลก่อน 5 ก.ค.2560'!B$221:B$273,A11,'กรอกข้อมูลก่อน 5 ก.ค.2560'!C$221:C$273,B11)=0,"",SUMIFS('กรอกข้อมูลก่อน 5 ก.ค.2560'!J$5:J$57,'กรอกข้อมูลก่อน 5 ก.ค.2560'!B$5:B$57,A11,'กรอกข้อมูลก่อน 5 ก.ค.2560'!C$5:C$57,B11)+SUMIFS('กรอกข้อมูลก่อน 5 ก.ค.2560'!J$59:J$111,'กรอกข้อมูลก่อน 5 ก.ค.2560'!B$59:B$111,A11,'กรอกข้อมูลก่อน 5 ก.ค.2560'!C$59:C$111,B11)+SUMIFS('กรอกข้อมูลก่อน 5 ก.ค.2560'!J$113:J$165,'กรอกข้อมูลก่อน 5 ก.ค.2560'!B$113:B$165,A11,'กรอกข้อมูลก่อน 5 ก.ค.2560'!C$113:C$165,B11)+SUMIFS('กรอกข้อมูลก่อน 5 ก.ค.2560'!J$167:J$219,'กรอกข้อมูลก่อน 5 ก.ค.2560'!B$167:B$219,A11,'กรอกข้อมูลก่อน 5 ก.ค.2560'!C$167:C$219,B11)+SUMIFS('กรอกข้อมูลก่อน 5 ก.ค.2560'!J$221:J$273,'กรอกข้อมูลก่อน 5 ก.ค.2560'!B$221:B$273,A11,'กรอกข้อมูลก่อน 5 ก.ค.2560'!C$221:C$273,B11)) ->  | D11: =IF(SUMIFS('กรอกข้อมูลก่อน 5 ก.ค.2560'!M$5:M$57,'กรอกข้อมูลก่อน 5 ก.ค.2560'!B$5:B$57,A11,'กรอกข้อมูลก่อน 5 ก.ค.2560'!C$5:C$57,B11)+SUMIFS('กรอกข้อมูลก่อน 5 ก.ค.2560'!M$59:M$111,'กรอกข้อมูลก่อน 5 ก.ค.2560'!B$59:B$111,A11,'กรอกข้อมูลก่อน 5 ก.ค.2560'!C$59:C$111,B11)+SUMIFS('กรอกข้อมูลก่อน 5 ก.ค.2560'!M$113:M$165,'กรอกข้อมูลก่อน 5 ก.ค.2560'!B$113:B$165,A11,'กรอกข้อมูลก่อน 5 ก.ค.2560'!C$113:C$165,B11)+SUMIFS('กรอกข้อมูลก่อน 5 ก.ค.2560'!M$167:M$219,'กรอกข้อมูลก่อน 5 ก.ค.2560'!B$167:B$219,A11,'กรอกข้อมูลก่อน 5 ก.ค.2560'!C$167:C$219,B11)+SUMIFS('กรอกข้อมูลก่อน 5 ก.ค.2560'!M$221:M$273,'กรอกข้อมูลก่อน 5 ก.ค.2560'!B$221:B$273,A11,'กรอกข้อมูลก่อน 5 ก.ค.2560'!C$221:C$273,B11)=0,"",SUMIFS('กรอกข้อมูลก่อน 5 ก.ค.2560'!M$5:M$57,'กรอกข้อมูลก่อน 5 ก.ค.2560'!B$5:B$57,A11,'กรอกข้อมูลก่อน 5 ก.ค.2560'!C$5:C$57,B11)+SUMIFS('กรอกข้อมูลก่อน 5 ก.ค.2560'!M$59:M$111,'กรอกข้อมูลก่อน 5 ก.ค.2560'!B$59:B$111,A11,'กรอกข้อมูลก่อน 5 ก.ค.2560'!C$59:C$111,B11)+SUMIFS('กรอกข้อมูลก่อน 5 ก.ค.2560'!M$113:M$165,'กรอกข้อมูลก่อน 5 ก.ค.2560'!B$113:B$165,A11,'กรอกข้อมูลก่อน 5 ก.ค.2560'!C$113:C$165,B11)+SUMIFS('กรอกข้อมูลก่อน 5 ก.ค.2560'!M$167:M$219,'กรอกข้อมูลก่อน 5 ก.ค.2560'!B$167:B$219,A11,'กรอกข้อมูลก่อน 5 ก.ค.2560'!C$167:C$219,B11)+SUMIFS('กรอกข้อมูลก่อน 5 ก.ค.2560'!M$221:M$273,'กรอกข้อมูลก่อน 5 ก.ค.2560'!B$221:B$273,A11,'กรอกข้อมูลก่อน 5 ก.ค.2560'!C$221:C$273,B11)) -> 
A12: =IF(A$3="","",IF(A$3+3>2560,"",A$3+3)) -> 2559 | B12: 1 | C12: =IF(SUMIFS('กรอกข้อมูลก่อน 5 ก.ค.2560'!J$5:J$57,'กรอกข้อมูลก่อน 5 ก.ค.2560'!B$5:B$57,A12,'กรอกข้อมูลก่อน 5 ก.ค.2560'!C$5:C$57,B12)+SUMIFS('กรอกข้อมูลก่อน 5 ก.ค.2560'!J$59:J$111,'กรอกข้อมูลก่อน 5 ก.ค.2560'!B$59:B$111,A12,'กรอกข้อมูลก่อน 5 ก.ค.2560'!C$59:C$111,B12)+SUMIFS('กรอกข้อมูลก่อน 5 ก.ค.2560'!J$113:J$165,'กรอกข้อมูลก่อน 5 ก.ค.2560'!B$113:B$165,A12,'กรอกข้อมูลก่อน 5 ก.ค.2560'!C$113:C$165,B12)+SUMIFS('กรอกข้อมูลก่อน 5 ก.ค.2560'!J$167:J$219,'กรอกข้อมูลก่อน 5 ก.ค.2560'!B$167:B$219,A12,'กรอกข้อมูลก่อน 5 ก.ค.2560'!C$167:C$219,B12)+SUMIFS('กรอกข้อมูลก่อน 5 ก.ค.2560'!J$221:J$273,'กรอกข้อมูลก่อน 5 ก.ค.2560'!B$221:B$273,A12,'กรอกข้อมูลก่อน 5 ก.ค.2560'!C$221:C$273,B12)=0,"",SUMIFS('กรอกข้อมูลก่อน 5 ก.ค.2560'!J$5:J$57,'กรอกข้อมูลก่อน 5 ก.ค.2560'!B$5:B$57,A12,'กรอกข้อมูลก่อน 5 ก.ค.2560'!C$5:C$57,B12)+SUMIFS('กรอกข้อมูลก่อน 5 ก.ค.2560'!J$59:J$111,'กรอกข้อมูลก่อน 5 ก.ค.2560'!B$59:B$111,A12,'กรอกข้อมูลก่อน 5 ก.ค.2560'!C$59:C$111,B12)+SUMIFS('กรอกข้อมูลก่อน 5 ก.ค.2560'!J$113:J$165,'กรอกข้อมูลก่อน 5 ก.ค.2560'!B$113:B$165,A12,'กรอกข้อมูลก่อน 5 ก.ค.2560'!C$113:C$165,B12)+SUMIFS('กรอกข้อมูลก่อน 5 ก.ค.2560'!J$167:J$219,'กรอกข้อมูลก่อน 5 ก.ค.2560'!B$167:B$219,A12,'กรอกข้อมูลก่อน 5 ก.ค.2560'!C$167:C$219,B12)+SUMIFS('กรอกข้อมูลก่อน 5 ก.ค.2560'!J$221:J$273,'กรอกข้อมูลก่อน 5 ก.ค.2560'!B$221:B$273,A12,'กรอกข้อมูลก่อน 5 ก.ค.2560'!C$221:C$273,B12)) ->  | D12: =IF(SUMIFS('กรอกข้อมูลก่อน 5 ก.ค.2560'!M$5:M$57,'กรอกข้อมูลก่อน 5 ก.ค.2560'!B$5:B$57,A12,'กรอกข้อมูลก่อน 5 ก.ค.2560'!C$5:C$57,B12)+SUMIFS('กรอกข้อมูลก่อน 5 ก.ค.2560'!M$59:M$111,'กรอกข้อมูลก่อน 5 ก.ค.2560'!B$59:B$111,A12,'กรอกข้อมูลก่อน 5 ก.ค.2560'!C$59:C$111,B12)+SUMIFS('กรอกข้อมูลก่อน 5 ก.ค.2560'!M$113:M$165,'กรอกข้อมูลก่อน 5 ก.ค.2560'!B$113:B$165,A12,'กรอกข้อมูลก่อน 5 ก.ค.2560'!C$113:C$165,B12)+SUMIFS('กรอกข้อมูลก่อน 5 ก.ค.2560'!M$167:M$219,'กรอกข้อมูลก่อน 5 ก.ค.2560'!B$167:B$219,A12,'กรอกข้อมูลก่อน 5 ก.ค.2560'!C$167:C$219,B12)+SUMIFS('กรอกข้อมูลก่อน 5 ก.ค.2560'!M$221:M$273,'กรอกข้อมูลก่อน 5 ก.ค.2560'!B$221:B$273,A12,'กรอกข้อมูลก่อน 5 ก.ค.2560'!C$221:C$273,B12)=0,"",SUMIFS('กรอกข้อมูลก่อน 5 ก.ค.2560'!M$5:M$57,'กรอกข้อมูลก่อน 5 ก.ค.2560'!B$5:B$57,A12,'กรอกข้อมูลก่อน 5 ก.ค.2560'!C$5:C$57,B12)+SUMIFS('กรอกข้อมูลก่อน 5 ก.ค.2560'!M$59:M$111,'กรอกข้อมูลก่อน 5 ก.ค.2560'!B$59:B$111,A12,'กรอกข้อมูลก่อน 5 ก.ค.2560'!C$59:C$111,B12)+SUMIFS('กรอกข้อมูลก่อน 5 ก.ค.2560'!M$113:M$165,'กรอกข้อมูลก่อน 5 ก.ค.2560'!B$113:B$165,A12,'กรอกข้อมูลก่อน 5 ก.ค.2560'!C$113:C$165,B12)+SUMIFS('กรอกข้อมูลก่อน 5 ก.ค.2560'!M$167:M$219,'กรอกข้อมูลก่อน 5 ก.ค.2560'!B$167:B$219,A12,'กรอกข้อมูลก่อน 5 ก.ค.2560'!C$167:C$219,B12)+SUMIFS('กรอกข้อมูลก่อน 5 ก.ค.2560'!M$221:M$273,'กรอกข้อมูลก่อน 5 ก.ค.2560'!B$221:B$273,A12,'กรอกข้อมูลก่อน 5 ก.ค.2560'!C$221:C$273,B12)) -> 
A13: =IF(A$3="","",IF(A$12>2559,"",A$3+3)) -> 2559 | B13: =IF(A13="","",2) -> 2 | C13: =IF(SUMIFS('กรอกข้อมูลก่อน 5 ก.ค.2560'!J$5:J$57,'กรอกข้อมูลก่อน 5 ก.ค.2560'!B$5:B$57,A13,'กรอกข้อมูลก่อน 5 ก.ค.2560'!C$5:C$57,B13)+SUMIFS('กรอกข้อมูลก่อน 5 ก.ค.2560'!J$59:J$111,'กรอกข้อมูลก่อน 5 ก.ค.2560'!B$59:B$111,A13,'กรอกข้อมูลก่อน 5 ก.ค.2560'!C$59:C$111,B13)+SUMIFS('กรอกข้อมูลก่อน 5 ก.ค.2560'!J$113:J$165,'กรอกข้อมูลก่อน 5 ก.ค.2560'!B$113:B$165,A13,'กรอกข้อมูลก่อน 5 ก.ค.2560'!C$113:C$165,B13)+SUMIFS('กรอกข้อมูลก่อน 5 ก.ค.2560'!J$167:J$219,'กรอกข้อมูลก่อน 5 ก.ค.2560'!B$167:B$219,A13,'กรอกข้อมูลก่อน 5 ก.ค.2560'!C$167:C$219,B13)+SUMIFS('กรอกข้อมูลก่อน 5 ก.ค.2560'!J$221:J$273,'กรอกข้อมูลก่อน 5 ก.ค.2560'!B$221:B$273,A13,'กรอกข้อมูลก่อน 5 ก.ค.2560'!C$221:C$273,B13)=0,"",SUMIFS('กรอกข้อมูลก่อน 5 ก.ค.2560'!J$5:J$57,'กรอกข้อมูลก่อน 5 ก.ค.2560'!B$5:B$57,A13,'กรอกข้อมูลก่อน 5 ก.ค.2560'!C$5:C$57,B13)+SUMIFS('กรอกข้อมูลก่อน 5 ก.ค.2560'!J$59:J$111,'กรอกข้อมูลก่อน 5 ก.ค.2560'!B$59:B$111,A13,'กรอกข้อมูลก่อน 5 ก.ค.2560'!C$59:C$111,B13)+SUMIFS('กรอกข้อมูลก่อน 5 ก.ค.2560'!J$113:J$165,'กรอกข้อมูลก่อน 5 ก.ค.2560'!B$113:B$165,A13,'กรอกข้อมูลก่อน 5 ก.ค.2560'!C$113:C$165,B13)+SUMIFS('กรอกข้อมูลก่อน 5 ก.ค.2560'!J$167:J$219,'กรอกข้อมูลก่อน 5 ก.ค.2560'!B$167:B$219,A13,'กรอกข้อมูลก่อน 5 ก.ค.2560'!C$167:C$219,B13)+SUMIFS('กรอกข้อมูลก่อน 5 ก.ค.2560'!J$221:J$273,'กรอกข้อมูลก่อน 5 ก.ค.2560'!B$221:B$273,A13,'กรอกข้อมูลก่อน 5 ก.ค.2560'!C$221:C$273,B13)) ->  | D13: =IF(SUMIFS('กรอกข้อมูลก่อน 5 ก.ค.2560'!M$5:M$57,'กรอกข้อมูลก่อน 5 ก.ค.2560'!B$5:B$57,A13,'กรอกข้อมูลก่อน 5 ก.ค.2560'!C$5:C$57,B13)+SUMIFS('กรอกข้อมูลก่อน 5 ก.ค.2560'!M$59:M$111,'กรอกข้อมูลก่อน 5 ก.ค.2560'!B$59:B$111,A13,'กรอกข้อมูลก่อน 5 ก.ค.2560'!C$59:C$111,B13)+SUMIFS('กรอกข้อมูลก่อน 5 ก.ค.2560'!M$113:M$165,'กรอกข้อมูลก่อน 5 ก.ค.2560'!B$113:B$165,A13,'กรอกข้อมูลก่อน 5 ก.ค.2560'!C$113:C$165,B13)+SUMIFS('กรอกข้อมูลก่อน 5 ก.ค.2560'!M$167:M$219,'กรอกข้อมูลก่อน 5 ก.ค.2560'!B$167:B$219,A13,'กรอกข้อมูลก่อน 5 ก.ค.2560'!C$167:C$219,B13)+SUMIFS('กรอกข้อมูลก่อน 5 ก.ค.2560'!M$221:M$273,'กรอกข้อมูลก่อน 5 ก.ค.2560'!B$221:B$273,A13,'กรอกข้อมูลก่อน 5 ก.ค.2560'!C$221:C$273,B13)=0,"",SUMIFS('กรอกข้อมูลก่อน 5 ก.ค.2560'!M$5:M$57,'กรอกข้อมูลก่อน 5 ก.ค.2560'!B$5:B$57,A13,'กรอกข้อมูลก่อน 5 ก.ค.2560'!C$5:C$57,B13)+SUMIFS('กรอกข้อมูลก่อน 5 ก.ค.2560'!M$59:M$111,'กรอกข้อมูลก่อน 5 ก.ค.2560'!B$59:B$111,A13,'กรอกข้อมูลก่อน 5 ก.ค.2560'!C$59:C$111,B13)+SUMIFS('กรอกข้อมูลก่อน 5 ก.ค.2560'!M$113:M$165,'กรอกข้อมูลก่อน 5 ก.ค.2560'!B$113:B$165,A13,'กรอกข้อมูลก่อน 5 ก.ค.2560'!C$113:C$165,B13)+SUMIFS('กรอกข้อมูลก่อน 5 ก.ค.2560'!M$167:M$219,'กรอกข้อมูลก่อน 5 ก.ค.2560'!B$167:B$219,A13,'กรอกข้อมูลก่อน 5 ก.ค.2560'!C$167:C$219,B13)+SUMIFS('กรอกข้อมูลก่อน 5 ก.ค.2560'!M$221:M$273,'กรอกข้อมูลก่อน 5 ก.ค.2560'!B$221:B$273,A13,'กรอกข้อมูลก่อน 5 ก.ค.2560'!C$221:C$273,B13)) -> 
A14: =IF(A$3="","",IF(A$12>2559,"",A$3+3)) -> 2559 | B14: =IF(A14="","",3) -> 3 | C14: =IF(SUMIFS('กรอกข้อมูลก่อน 5 ก.ค.2560'!J$5:J$57,'กรอกข้อมูลก่อน 5 ก.ค.2560'!B$5:B$57,A14,'กรอกข้อมูลก่อน 5 ก.ค.2560'!C$5:C$57,B14)+SUMIFS('กรอกข้อมูลก่อน 5 ก.ค.2560'!J$59:J$111,'กรอกข้อมูลก่อน 5 ก.ค.2560'!B$59:B$111,A14,'กรอกข้อมูลก่อน 5 ก.ค.2560'!C$59:C$111,B14)+SUMIFS('กรอกข้อมูลก่อน 5 ก.ค.2560'!J$113:J$165,'กรอกข้อมูลก่อน 5 ก.ค.2560'!B$113:B$165,A14,'กรอกข้อมูลก่อน 5 ก.ค.2560'!C$113:C$165,B14)+SUMIFS('กรอกข้อมูลก่อน 5 ก.ค.2560'!J$167:J$219,'กรอกข้อมูลก่อน 5 ก.ค.2560'!B$167:B$219,A14,'กรอกข้อมูลก่อน 5 ก.ค.2560'!C$167:C$219,B14)+SUMIFS('กรอกข้อมูลก่อน 5 ก.ค.2560'!J$221:J$273,'กรอกข้อมูลก่อน 5 ก.ค.2560'!B$221:B$273,A14,'กรอกข้อมูลก่อน 5 ก.ค.2560'!C$221:C$273,B14)=0,"",SUMIFS('กรอกข้อมูลก่อน 5 ก.ค.2560'!J$5:J$57,'กรอกข้อมูลก่อน 5 ก.ค.2560'!B$5:B$57,A14,'กรอกข้อมูลก่อน 5 ก.ค.2560'!C$5:C$57,B14)+SUMIFS('กรอกข้อมูลก่อน 5 ก.ค.2560'!J$59:J$111,'กรอกข้อมูลก่อน 5 ก.ค.2560'!B$59:B$111,A14,'กรอกข้อมูลก่อน 5 ก.ค.2560'!C$59:C$111,B14)+SUMIFS('กรอกข้อมูลก่อน 5 ก.ค.2560'!J$113:J$165,'กรอกข้อมูลก่อน 5 ก.ค.2560'!B$113:B$165,A14,'กรอกข้อมูลก่อน 5 ก.ค.2560'!C$113:C$165,B14)+SUMIFS('กรอกข้อมูลก่อน 5 ก.ค.2560'!J$167:J$219,'กรอกข้อมูลก่อน 5 ก.ค.2560'!B$167:B$219,A14,'กรอกข้อมูลก่อน 5 ก.ค.2560'!C$167:C$219,B14)+SUMIFS('กรอกข้อมูลก่อน 5 ก.ค.2560'!J$221:J$273,'กรอกข้อมูลก่อน 5 ก.ค.2560'!B$221:B$273,A14,'กรอกข้อมูลก่อน 5 ก.ค.2560'!C$221:C$273,B14)) ->  | D14: =IF(SUMIFS('กรอกข้อมูลก่อน 5 ก.ค.2560'!M$5:M$57,'กรอกข้อมูลก่อน 5 ก.ค.2560'!B$5:B$57,A14,'กรอกข้อมูลก่อน 5 ก.ค.2560'!C$5:C$57,B14)+SUMIFS('กรอกข้อมูลก่อน 5 ก.ค.2560'!M$59:M$111,'กรอกข้อมูลก่อน 5 ก.ค.2560'!B$59:B$111,A14,'กรอกข้อมูลก่อน 5 ก.ค.2560'!C$59:C$111,B14)+SUMIFS('กรอกข้อมูลก่อน 5 ก.ค.2560'!M$113:M$165,'กรอกข้อมูลก่อน 5 ก.ค.2560'!B$113:B$165,A14,'กรอกข้อมูลก่อน 5 ก.ค.2560'!C$113:C$165,B14)+SUMIFS('กรอกข้อมูลก่อน 5 ก.ค.2560'!M$167:M$219,'กรอกข้อมูลก่อน 5 ก.ค.2560'!B$167:B$219,A14,'กรอกข้อมูลก่อน 5 ก.ค.2560'!C$167:C$219,B14)+SUMIFS('กรอกข้อมูลก่อน 5 ก.ค.2560'!M$221:M$273,'กรอกข้อมูลก่อน 5 ก.ค.2560'!B$221:B$273,A14,'กรอกข้อมูลก่อน 5 ก.ค.2560'!C$221:C$273,B14)=0,"",SUMIFS('กรอกข้อมูลก่อน 5 ก.ค.2560'!M$5:M$57,'กรอกข้อมูลก่อน 5 ก.ค.2560'!B$5:B$57,A14,'กรอกข้อมูลก่อน 5 ก.ค.2560'!C$5:C$57,B14)+SUMIFS('กรอกข้อมูลก่อน 5 ก.ค.2560'!M$59:M$111,'กรอกข้อมูลก่อน 5 ก.ค.2560'!B$59:B$111,A14,'กรอกข้อมูลก่อน 5 ก.ค.2560'!C$59:C$111,B14)+SUMIFS('กรอกข้อมูลก่อน 5 ก.ค.2560'!M$113:M$165,'กรอกข้อมูลก่อน 5 ก.ค.2560'!B$113:B$165,A14,'กรอกข้อมูลก่อน 5 ก.ค.2560'!C$113:C$165,B14)+SUMIFS('กรอกข้อมูลก่อน 5 ก.ค.2560'!M$167:M$219,'กรอกข้อมูลก่อน 5 ก.ค.2560'!B$167:B$219,A14,'กรอกข้อมูลก่อน 5 ก.ค.2560'!C$167:C$219,B14)+SUMIFS('กรอกข้อมูลก่อน 5 ก.ค.2560'!M$221:M$273,'กรอกข้อมูลก่อน 5 ก.ค.2560'!B$221:B$273,A14,'กรอกข้อมูลก่อน 5 ก.ค.2560'!C$221:C$273,B14)) -> 
A15: =IF(A$3="","",IF(A$3+4>2560,"",A$3+4)) -> 2560 | B15: 1 | C15: =IF(SUMIFS('กรอกข้อมูลก่อน 5 ก.ค.2560'!J$5:J$57,'กรอกข้อมูลก่อน 5 ก.ค.2560'!B$5:B$57,A15,'กรอกข้อมูลก่อน 5 ก.ค.2560'!C$5:C$57,B15)+SUMIFS('กรอกข้อมูลก่อน 5 ก.ค.2560'!J$59:J$111,'กรอกข้อมูลก่อน 5 ก.ค.2560'!B$59:B$111,A15,'กรอกข้อมูลก่อน 5 ก.ค.2560'!C$59:C$111,B15)+SUMIFS('กรอกข้อมูลก่อน 5 ก.ค.2560'!J$113:J$165,'กรอกข้อมูลก่อน 5 ก.ค.2560'!B$113:B$165,A15,'กรอกข้อมูลก่อน 5 ก.ค.2560'!C$113:C$165,B15)+SUMIFS('กรอกข้อมูลก่อน 5 ก.ค.2560'!J$167:J$219,'กรอกข้อมูลก่อน 5 ก.ค.2560'!B$167:B$219,A15,'กรอกข้อมูลก่อน 5 ก.ค.2560'!C$167:C$219,B15)+SUMIFS('กรอกข้อมูลก่อน 5 ก.ค.2560'!J$221:J$273,'กรอกข้อมูลก่อน 5 ก.ค.2560'!B$221:B$273,A15,'กรอกข้อมูลก่อน 5 ก.ค.2560'!C$221:C$273,B15)=0,"",SUMIFS('กรอกข้อมูลก่อน 5 ก.ค.2560'!J$5:J$57,'กรอกข้อมูลก่อน 5 ก.ค.2560'!B$5:B$57,A15,'กรอกข้อมูลก่อน 5 ก.ค.2560'!C$5:C$57,B15)+SUMIFS('กรอกข้อมูลก่อน 5 ก.ค.2560'!J$59:J$111,'กรอกข้อมูลก่อน 5 ก.ค.2560'!B$59:B$111,A15,'กรอกข้อมูลก่อน 5 ก.ค.2560'!C$59:C$111,B15)+SUMIFS('กรอกข้อมูลก่อน 5 ก.ค.2560'!J$113:J$165,'กรอกข้อมูลก่อน 5 ก.ค.2560'!B$113:B$165,A15,'กรอกข้อมูลก่อน 5 ก.ค.2560'!C$113:C$165,B15)+SUMIFS('กรอกข้อมูลก่อน 5 ก.ค.2560'!J$167:J$219,'กรอกข้อมูลก่อน 5 ก.ค.2560'!B$167:B$219,A15,'กรอกข้อมูลก่อน 5 ก.ค.2560'!C$167:C$219,B15)+SUMIFS('กรอกข้อมูลก่อน 5 ก.ค.2560'!J$221:J$273,'กรอกข้อมูลก่อน 5 ก.ค.2560'!B$221:B$273,A15,'กรอกข้อมูลก่อน 5 ก.ค.2560'!C$221:C$273,B15)) ->  | D15: =IF(SUMIFS('กรอกข้อมูลก่อน 5 ก.ค.2560'!M$5:M$57,'กรอกข้อมูลก่อน 5 ก.ค.2560'!B$5:B$57,A15,'กรอกข้อมูลก่อน 5 ก.ค.2560'!C$5:C$57,B15)+SUMIFS('กรอกข้อมูลก่อน 5 ก.ค.2560'!M$59:M$111,'กรอกข้อมูลก่อน 5 ก.ค.2560'!B$59:B$111,A15,'กรอกข้อมูลก่อน 5 ก.ค.2560'!C$59:C$111,B15)+SUMIFS('กรอกข้อมูลก่อน 5 ก.ค.2560'!M$113:M$165,'กรอกข้อมูลก่อน 5 ก.ค.2560'!B$113:B$165,A15,'กรอกข้อมูลก่อน 5 ก.ค.2560'!C$113:C$165,B15)+SUMIFS('กรอกข้อมูลก่อน 5 ก.ค.2560'!M$167:M$219,'กรอกข้อมูลก่อน 5 ก.ค.2560'!B$167:B$219,A15,'กรอกข้อมูลก่อน 5 ก.ค.2560'!C$167:C$219,B15)+SUMIFS('กรอกข้อมูลก่อน 5 ก.ค.2560'!M$221:M$273,'กรอกข้อมูลก่อน 5 ก.ค.2560'!B$221:B$273,A15,'กรอกข้อมูลก่อน 5 ก.ค.2560'!C$221:C$273,B15)=0,"",SUMIFS('กรอกข้อมูลก่อน 5 ก.ค.2560'!M$5:M$57,'กรอกข้อมูลก่อน 5 ก.ค.2560'!B$5:B$57,A15,'กรอกข้อมูลก่อน 5 ก.ค.2560'!C$5:C$57,B15)+SUMIFS('กรอกข้อมูลก่อน 5 ก.ค.2560'!M$59:M$111,'กรอกข้อมูลก่อน 5 ก.ค.2560'!B$59:B$111,A15,'กรอกข้อมูลก่อน 5 ก.ค.2560'!C$59:C$111,B15)+SUMIFS('กรอกข้อมูลก่อน 5 ก.ค.2560'!M$113:M$165,'กรอกข้อมูลก่อน 5 ก.ค.2560'!B$113:B$165,A15,'กรอกข้อมูลก่อน 5 ก.ค.2560'!C$113:C$165,B15)+SUMIFS('กรอกข้อมูลก่อน 5 ก.ค.2560'!M$167:M$219,'กรอกข้อมูลก่อน 5 ก.ค.2560'!B$167:B$219,A15,'กรอกข้อมูลก่อน 5 ก.ค.2560'!C$167:C$219,B15)+SUMIFS('กรอกข้อมูลก่อน 5 ก.ค.2560'!M$221:M$273,'กรอกข้อมูลก่อน 5 ก.ค.2560'!B$221:B$273,A15,'กรอกข้อมูลก่อน 5 ก.ค.2560'!C$221:C$273,B15)) -> 
A16: =IF(A$3="","",IF(A$15>2559,"",A$3+4)) ->  | B16: =IF(A16="","",2) ->  | C16: =IF(SUMIFS('กรอกข้อมูลก่อน 5 ก.ค.2560'!J$5:J$57,'กรอกข้อมูลก่อน 5 ก.ค.2560'!B$5:B$57,A16,'กรอกข้อมูลก่อน 5 ก.ค.2560'!C$5:C$57,B16)+SUMIFS('กรอกข้อมูลก่อน 5 ก.ค.2560'!J$59:J$111,'กรอกข้อมูลก่อน 5 ก.ค.2560'!B$59:B$111,A16,'กรอกข้อมูลก่อน 5 ก.ค.2560'!C$59:C$111,B16)+SUMIFS('กรอกข้อมูลก่อน 5 ก.ค.2560'!J$113:J$165,'กรอกข้อมูลก่อน 5 ก.ค.2560'!B$113:B$165,A16,'กรอกข้อมูลก่อน 5 ก.ค.2560'!C$113:C$165,B16)+SUMIFS('กรอกข้อมูลก่อน 5 ก.ค.2560'!J$167:J$219,'กรอกข้อมูลก่อน 5 ก.ค.2560'!B$167:B$219,A16,'กรอกข้อมูลก่อน 5 ก.ค.2560'!C$167:C$219,B16)+SUMIFS('กรอกข้อมูลก่อน 5 ก.ค.2560'!J$221:J$273,'กรอกข้อมูลก่อน 5 ก.ค.2560'!B$221:B$273,A16,'กรอกข้อมูลก่อน 5 ก.ค.2560'!C$221:C$273,B16)=0,"",SUMIFS('กรอกข้อมูลก่อน 5 ก.ค.2560'!J$5:J$57,'กรอกข้อมูลก่อน 5 ก.ค.2560'!B$5:B$57,A16,'กรอกข้อมูลก่อน 5 ก.ค.2560'!C$5:C$57,B16)+SUMIFS('กรอกข้อมูลก่อน 5 ก.ค.2560'!J$59:J$111,'กรอกข้อมูลก่อน 5 ก.ค.2560'!B$59:B$111,A16,'กรอกข้อมูลก่อน 5 ก.ค.2560'!C$59:C$111,B16)+SUMIFS('กรอกข้อมูลก่อน 5 ก.ค.2560'!J$113:J$165,'กรอกข้อมูลก่อน 5 ก.ค.2560'!B$113:B$165,A16,'กรอกข้อมูลก่อน 5 ก.ค.2560'!C$113:C$165,B16)+SUMIFS('กรอกข้อมูลก่อน 5 ก.ค.2560'!J$167:J$219,'กรอกข้อมูลก่อน 5 ก.ค.2560'!B$167:B$219,A16,'กรอกข้อมูลก่อน 5 ก.ค.2560'!C$167:C$219,B16)+SUMIFS('กรอกข้อมูลก่อน 5 ก.ค.2560'!J$221:J$273,'กรอกข้อมูลก่อน 5 ก.ค.2560'!B$221:B$273,A16,'กรอกข้อมูลก่อน 5 ก.ค.2560'!C$221:C$273,B16)) ->  | D16: =IF(SUMIFS('กรอกข้อมูลก่อน 5 ก.ค.2560'!M$5:M$57,'กรอกข้อมูลก่อน 5 ก.ค.2560'!B$5:B$57,A16,'กรอกข้อมูลก่อน 5 ก.ค.2560'!C$5:C$57,B16)+SUMIFS('กรอกข้อมูลก่อน 5 ก.ค.2560'!M$59:M$111,'กรอกข้อมูลก่อน 5 ก.ค.2560'!B$59:B$111,A16,'กรอกข้อมูลก่อน 5 ก.ค.2560'!C$59:C$111,B16)+SUMIFS('กรอกข้อมูลก่อน 5 ก.ค.2560'!M$113:M$165,'กรอกข้อมูลก่อน 5 ก.ค.2560'!B$113:B$165,A16,'กรอกข้อมูลก่อน 5 ก.ค.2560'!C$113:C$165,B16)+SUMIFS('กรอกข้อมูลก่อน 5 ก.ค.2560'!M$167:M$219,'กรอกข้อมูลก่อน 5 ก.ค.2560'!B$167:B$219,A16,'กรอกข้อมูลก่อน 5 ก.ค.2560'!C$167:C$219,B16)+SUMIFS('กรอกข้อมูลก่อน 5 ก.ค.2560'!M$221:M$273,'กรอกข้อมูลก่อน 5 ก.ค.2560'!B$221:B$273,A16,'กรอกข้อมูลก่อน 5 ก.ค.2560'!C$221:C$273,B16)=0,"",SUMIFS('กรอกข้อมูลก่อน 5 ก.ค.2560'!M$5:M$57,'กรอกข้อมูลก่อน 5 ก.ค.2560'!B$5:B$57,A16,'กรอกข้อมูลก่อน 5 ก.ค.2560'!C$5:C$57,B16)+SUMIFS('กรอกข้อมูลก่อน 5 ก.ค.2560'!M$59:M$111,'กรอกข้อมูลก่อน 5 ก.ค.2560'!B$59:B$111,A16,'กรอกข้อมูลก่อน 5 ก.ค.2560'!C$59:C$111,B16)+SUMIFS('กรอกข้อมูลก่อน 5 ก.ค.2560'!M$113:M$165,'กรอกข้อมูลก่อน 5 ก.ค.2560'!B$113:B$165,A16,'กรอกข้อมูลก่อน 5 ก.ค.2560'!C$113:C$165,B16)+SUMIFS('กรอกข้อมูลก่อน 5 ก.ค.2560'!M$167:M$219,'กรอกข้อมูลก่อน 5 ก.ค.2560'!B$167:B$219,A16,'กรอกข้อมูลก่อน 5 ก.ค.2560'!C$167:C$219,B16)+SUMIFS('กรอกข้อมูลก่อน 5 ก.ค.2560'!M$221:M$273,'กรอกข้อมูลก่อน 5 ก.ค.2560'!B$221:B$273,A16,'กรอกข้อมูลก่อน 5 ก.ค.2560'!C$221:C$273,B16)) -> 
A17: =IF(A$3="","",IF(A$15>2559,"",A$3+4)) ->  | B17: =IF(A17="","",3) ->  | C17: =IF(SUMIFS('กรอกข้อมูลก่อน 5 ก.ค.2560'!J$5:J$57,'กรอกข้อมูลก่อน 5 ก.ค.2560'!B$5:B$57,A17,'กรอกข้อมูลก่อน 5 ก.ค.2560'!C$5:C$57,B17)+SUMIFS('กรอกข้อมูลก่อน 5 ก.ค.2560'!J$59:J$111,'กรอกข้อมูลก่อน 5 ก.ค.2560'!B$59:B$111,A17,'กรอกข้อมูลก่อน 5 ก.ค.2560'!C$59:C$111,B17)+SUMIFS('กรอกข้อมูลก่อน 5 ก.ค.2560'!J$113:J$165,'กรอกข้อมูลก่อน 5 ก.ค.2560'!B$113:B$165,A17,'กรอกข้อมูลก่อน 5 ก.ค.2560'!C$113:C$165,B17)+SUMIFS('กรอกข้อมูลก่อน 5 ก.ค.2560'!J$167:J$219,'กรอกข้อมูลก่อน 5 ก.ค.2560'!B$167:B$219,A17,'กรอกข้อมูลก่อน 5 ก.ค.2560'!C$167:C$219,B17)+SUMIFS('กรอกข้อมูลก่อน 5 ก.ค.2560'!J$221:J$273,'กรอกข้อมูลก่อน 5 ก.ค.2560'!B$221:B$273,A17,'กรอกข้อมูลก่อน 5 ก.ค.2560'!C$221:C$273,B17)=0,"",SUMIFS('กรอกข้อมูลก่อน 5 ก.ค.2560'!J$5:J$57,'กรอกข้อมูลก่อน 5 ก.ค.2560'!B$5:B$57,A17,'กรอกข้อมูลก่อน 5 ก.ค.2560'!C$5:C$57,B17)+SUMIFS('กรอกข้อมูลก่อน 5 ก.ค.2560'!J$59:J$111,'กรอกข้อมูลก่อน 5 ก.ค.2560'!B$59:B$111,A17,'กรอกข้อมูลก่อน 5 ก.ค.2560'!C$59:C$111,B17)+SUMIFS('กรอกข้อมูลก่อน 5 ก.ค.2560'!J$113:J$165,'กรอกข้อมูลก่อน 5 ก.ค.2560'!B$113:B$165,A17,'กรอกข้อมูลก่อน 5 ก.ค.2560'!C$113:C$165,B17)+SUMIFS('กรอกข้อมูลก่อน 5 ก.ค.2560'!J$167:J$219,'กรอกข้อมูลก่อน 5 ก.ค.2560'!B$167:B$219,A17,'กรอกข้อมูลก่อน 5 ก.ค.2560'!C$167:C$219,B17)+SUMIFS('กรอกข้อมูลก่อน 5 ก.ค.2560'!J$221:J$273,'กรอกข้อมูลก่อน 5 ก.ค.2560'!B$221:B$273,A17,'กรอกข้อมูลก่อน 5 ก.ค.2560'!C$221:C$273,B17)) ->  | D17: =IF(SUMIFS('กรอกข้อมูลก่อน 5 ก.ค.2560'!M$5:M$57,'กรอกข้อมูลก่อน 5 ก.ค.2560'!B$5:B$57,A17,'กรอกข้อมูลก่อน 5 ก.ค.2560'!C$5:C$57,B17)+SUMIFS('กรอกข้อมูลก่อน 5 ก.ค.2560'!M$59:M$111,'กรอกข้อมูลก่อน 5 ก.ค.2560'!B$59:B$111,A17,'กรอกข้อมูลก่อน 5 ก.ค.2560'!C$59:C$111,B17)+SUMIFS('กรอกข้อมูลก่อน 5 ก.ค.2560'!M$113:M$165,'กรอกข้อมูลก่อน 5 ก.ค.2560'!B$113:B$165,A17,'กรอกข้อมูลก่อน 5 ก.ค.2560'!C$113:C$165,B17)+SUMIFS('กรอกข้อมูลก่อน 5 ก.ค.2560'!M$167:M$219,'กรอกข้อมูลก่อน 5 ก.ค.2560'!B$167:B$219,A17,'กรอกข้อมูลก่อน 5 ก.ค.2560'!C$167:C$219,B17)+SUMIFS('กรอกข้อมูลก่อน 5 ก.ค.2560'!M$221:M$273,'กรอกข้อมูลก่อน 5 ก.ค.2560'!B$221:B$273,A17,'กรอกข้อมูลก่อน 5 ก.ค.2560'!C$221:C$273,B17)=0,"",SUMIFS('กรอกข้อมูลก่อน 5 ก.ค.2560'!M$5:M$57,'กรอกข้อมูลก่อน 5 ก.ค.2560'!B$5:B$57,A17,'กรอกข้อมูลก่อน 5 ก.ค.2560'!C$5:C$57,B17)+SUMIFS('กรอกข้อมูลก่อน 5 ก.ค.2560'!M$59:M$111,'กรอกข้อมูลก่อน 5 ก.ค.2560'!B$59:B$111,A17,'กรอกข้อมูลก่อน 5 ก.ค.2560'!C$59:C$111,B17)+SUMIFS('กรอกข้อมูลก่อน 5 ก.ค.2560'!M$113:M$165,'กรอกข้อมูลก่อน 5 ก.ค.2560'!B$113:B$165,A17,'กรอกข้อมูลก่อน 5 ก.ค.2560'!C$113:C$165,B17)+SUMIFS('กรอกข้อมูลก่อน 5 ก.ค.2560'!M$167:M$219,'กรอกข้อมูลก่อน 5 ก.ค.2560'!B$167:B$219,A17,'กรอกข้อมูลก่อน 5 ก.ค.2560'!C$167:C$219,B17)+SUMIFS('กรอกข้อมูลก่อน 5 ก.ค.2560'!M$221:M$273,'กรอกข้อมูลก่อน 5 ก.ค.2560'!B$221:B$273,A17,'กรอกข้อมูลก่อน 5 ก.ค.2560'!C$221:C$273,B17)) -> 
